Workbook

Sheet 대덕구인구현황
A1: 대전광역시 대덕구 주민등록 인구현황
AA2: [ 2023. 7. 31.기준 ]
A3: 동 별 | B3: 인 구 및 세 대 수 | I3: 10대 이하 (0세 ~ 19세) | L3: 20대 | O3: 30대 | R3: 40대 | U3: 50대 | X3: 60대 | AA3: 70대 이상 | AD3: 65세 이상
B4: 계 | C4: 전월계 | D4: 증감 | E4: 증감비 (%) | F4: 남 | G4: 여 | H4: 세대수 | I4: 계 | J4: 전월계 | K4: 증감 | L4: 계 | M4: 전월계 | N4: 증감 | O4: 계 | P4: 전월계 | Q4: 증감 | R4: 계 | S4: 전월계 | T4: 증감 | U4: 계 | V4: 전월계 | W4: 증감 | X4: 계 | Y4: 전월계 | Z4: 증감 | AA4: 계 | AB4: 전월계 | AC4: 증감 | AD4: 계 | AE4: 전월계 | AF4: 증감
A5: 계 | B5: 170,803 | C5: =SUM(C6:C17) -> 170869 | D5: =SUM(D6:D17) -> -66 | E5: =(D5/B5)*100 -> -0.03864100748 | F5: =SUM(F6:F17) -> 86858 | G5: =SUM(G6:G17) -> 83945 | H5: =SUM(H6:H17) -> 80356 | I5: =SUM(I6:I17) -> 24022 | J5: 24114 | K5: -92 | L5: =SUM(L6:L17) -> 21905 | M5: =SUM(M6:M17) -> 22019 | N5: =SUM(N6:N17) -> -114 | O5: 19447 | P5: 19437 | Q5: 10 | R5: 24183 | S5: 24200 | T5: -17 | U5: =SUM(U6:U17) -> 32789 | V5: 32764 | W5: 25 | X5: 28134 | Y5: 28099 | Z5: 35 | AA5: 20323 | AB5: 20236 | AC5: 87 | AD5: =SUM(AD6:AD17) -> 32219 | AE5: =SUM(AE6:AE17) -> 32070 | AF5: =SUM(AF6:AF17) -> 149
A6: 오 정 동 | B6: 13983 | C6: 14006 | D6: =B6-C6 -> -23 | E6: -0.1644854466 | F6: 7349 | G6: 6634 | H6: 7550 | I6: 1430 | J6: 1453 | K6: =I6-J6 -> -23 | L6: 2165 | M6: 2177 | N6: =L6-M6 -> -12 | O6: 1379 | P6: 1378 | Q6: =O6-P6 -> 1 | R6: 1685 | S6: 1688 | T6: =R6-S6 -> -3 | U6: 2490 | V6: 2496 | W6: =U6-V6 -> -6 | X6: 2727 | Y6: 2718 | Z6: =X6-Y6 -> 9 | AA6: 2107 | AB6: 2096 | AC6: =AA6-AB6 -> 11 | AD6: 3318 | AE6: 3301 | AF6: =AD6-AE6 -> 17
A7: 대 화 동 | B7: 6541 | C7: 6553 | D7: -12 | E7: -0.1834581868 | F7: 3434 | G7: 3107 | H7: 3399 | I7: 628 | J7: 632 | K7: =I7-J7 -> -4 | L7: 668 | M7: 675 | N7: -7 | O7: 717 | P7: 713 | Q7: =O7-P7 -> 4 | R7: 924 | S7: 928 | T7: =R7-S7 -> -4 | U7: 1239 | V7: 1252 | W7: =U7-V7 -> -13 | X7: 1298 | Y7: 1290 | Z7: =X7-Y7 -> 8 | AA7: 1067 | AB7: 1063 | AC7: 4 | AD7: 1661 | AE7: 1658 | AF7: 3
A8: 회 덕 동 | B8: 11553 | C8: 11576 | D8: -23 | E8: -0.1990824894 | F8: 5910 | G8: 5643 | H8: 5477 | I8: 1322 | J8: 1333 | K8: -11 | L8: 1175 | M8: 1192 | N8: -17 | O8: 1115 | P8: 1129 | Q8: -14 | R8: 1444 | S8: 1447 | T8: -3 | U8: 2170 | V8: 2163 | W8: 7 | X8: 2379 | Y8: 2374 | Z8: 5 | AA8: 1948 | AB8: 1938 | AC8: 10 | AD8: 3016 | AE8: 2990 | AF8: 26
A9: 비 래 동 | B9: 15530 | C9: 15523 | D9: 7 | E9: 0.04507405023 | F9: 7715 | G9: 7815 | H9: 6954 | I9: 2125 | J9: 2130 | K9: -5 | L9: 1935 | M9: 1932 | N9: 3 | O9: 1453 | P9: 1453 | Q9: 0 | R9: 2150 | S9: 2155 | T9: -5 | U9: 3091 | V9: 3082 | W9: 9 | X9: 2778 | Y9: 2781 | Z9: -3 | AA9: 1998 | AB9: 1990 | AC9: 8 | AD9: 3207 | AE9: 3201 | AF9: 6
A10: 송 촌 동 | B10: 26358 | C10: 26373 | D10: -15 | E10: -0.05690871842 | F10: 13056 | G10: 13302 | H10: 10437 | I10: 4936 | J10: 4960 | K10: -24 | L10: 3692 | M10: 3695 | N10: -3 | O10: 2484 | P10: 2488 | Q10: -4 | R10: 4210 | S10: 4236 | T10: -26 | U10: 5723 | V10: 5711 | W10: 12 | X10: 3310 | Y10: 3286 | Z10: 24 | AA10: 2003 | AB10: 1997 | AC10: 6 | AD10: 3205 | AE10: 3186 | AF10: 19
A11: 중 리 동 | B11: 18841 | C11: 18857 | D11: -16 | E11: -0.08492118253 | F11: 9824 | G11: 9017 | H11: 10443 | I11: 2084 | J11: 2098 | K11: -14 | L11: 2754 | M11: 2789 | N11: -35 | O11: 2116 | P11: 2112 | Q11: 4 | R11: 2675 | S11: 2670 | T11: 5 | U11: 3667 | V11: 3658 | W11: 9 | X11: 3310 | Y11: 3313 | Z11: -3 | AA11: 2235 | AB11: 2217 | AC11: 18 | AD11: 3689 | AE11: 3657 | AF11: 32
A12: 법 1 동 | B12: 12565 | C12: 12561 | D12: 4 | E12: 0.0318344608 | F12: 5879 | G12: 6686 | H12: 5877 | I12: 1747 | J12: 1746 | K12: 1 | L12: 1394 | M12: 1399 | N12: -5 | O12: 1550 | P12: 1551 | Q12: -1 | R12: 1583 | S12: 1579 | T12: 4 | U12: 2361 | V12: 2372 | W12: -11 | X12: 2186 | Y12: 2176 | Z12: 10 | AA12: 1744 | AB12: 1738 | AC12: 6 | AD12: 2691 | AE12: 2670 | AF12: 21
A13: 법 2 동 | B13: 15211 | C13: 15246 | D13: -35 | E13: -0.2300966406 | F13: 7404 | G13: 7807 | H13: 6747 | I13: 2052 | J13: 2069 | K13: -17 | L13: 1815 | M13: 1825 | N13: -10 | O13: 1364 | P13: 1372 | Q13: -8 | R13: 1952 | S13: 1953 | T13: -1 | U13: 3053 | V13: 3044 | W13: 9 | X13: 2929 | Y13: 2943 | Z13: -14 | AA13: 2046 | AB13: 2040 | AC13: 6 | AD13: 3262 | AE13: 3257 | AF13: 5
A14: 신 탄 진 | B14: 14557 | C14: 14578 | D14: -21 | E14: -0.1442604932 | F14: 7522 | G14: 7035 | H14: 6994 | I14: 1910 | J14: 1910 | K14: 0 | L14: 1725 | M14: 1745 | N14: -20 | O14: 2051 | P14: 2042 | Q14: 9 | R14: 1952 | S14: 1951 | T14: 1 | U14: 2712 | V14: 2711 | W14: 1 | X14: 2374 | Y14: 2388 | Z14: -14 | AA14: 1833 | AB14: 1831 | AC14: 2 | AD14: 2880 | AE14: 2881 | AF14: -1
A15: 석 봉 동 | B15: 16259 | C15: 16196 | D15: 63 | E15: 0.3874777047 | F15: 8307 | G15: 7952 | H15: 6643 | I15: 3368 | J15: 3349 | K15: 19 | L15: 1745 | M15: 1752 | N15: -7 | O15: 2621 | P15: 2608 | Q15: 13 | R15: 2774 | S15: 2753 | T15: 21 | U15: 2593 | V15: 2583 | W15: 10 | X15: 1997 | Y15: 1993 | Z15: 4 | AA15: 1161 | AB15: 1158 | AC15: 3 | AD15: 1929 | AE15: 1926 | AF15: 3
A16: 덕 암 동 | B16: 13203 | C16: 13187 | D16: 16 | E16: 0.1211845793 | F16: 7090 | G16: 6113 | H16: 6664 | I16: 1567 | J16: 1574 | K16: -7 | L16: 1927 | M16: 1921 | N16: 6 | O16: 1663 | P16: 1657 | Q16: 6 | R16: 1802 | S16: 1802 | T16: 0 | U16: 2557 | V16: 2564 | W16: -7 | X16: 2018 | Y16: 2011 | Z16: 7 | AA16: 1669 | AB16: 1658 | AC16: 11 | AD16: 2529 | AE16: 2512 | AF16: 17
A17: 목 상 동 | B17: 6202 | C17: 6213 | D17: -11 | E17: -0.1773621412 | F17: 3368 | G17: 2834 | H17: 3171 | I17: 853 | J17: 860 | K17: -7 | L17: 910 | M17: 917 | N17: -7 | O17: 934 | P17: 934 | Q17: 0 | R17: 1032 | S17: 1038 | T17: -6 | U17: 1133 | V17: 1128 | W17: 5 | X17: 828 | Y17: 826 | Z17: 2 | AA17: 512 | AB17: 510 | AC17: 2 | AD17: 832 | AE17: 831 | AF17: 1

Sheet 연령별인구현황(2023.7.)
B2: 연령별(만)인구현황(기관별)
B4: 행정기관 : 대전광역시 대덕구 | M4: 출력일자 : | N4: 2023.08.01
B5: 통계년월 : 2023년 07월 현재
B6: 연령 | D6: 대덕구 | G6: 오정동 | J6: 대화동 | M6: 회덕동 | P6: 비래동 | S6: 송촌동 | V6: 중리동 | Y6: 신탄진동 | AB6: 석봉동 | AE6: 덕암동 | AH6: 목상동 | AK6: 법1동 | AN6: 법2동
D7: 인구수 | E7: 구성비 | F7: 성비 | G7: 인구수 | H7: 구성비 | I7: 성비 | J7: 인구수 | K7: 구성비 | L7: 성비 | M7: 인구수 | N7: 구성비 | O7: 성비 | P7: 인구수 | Q7: 구성비 | R7: 성비 | S7: 인구수 | T7: 구성비 | U7: 성비 | V7: 인구수 | W7: 구성비 | X7: 성비 | Y7: 인구수 | Z7: 구성비 | AA7: 성비 | AB7: 인구수 | AC7: 구성비 | AD7: 성비 | AE7: 인구수 | AF7: 구성비 | AG7: 성비 | AH7: 인구수 | AI7: 구성비 | AJ7: 성비 | AK7: 인구수 | AL7: 구성비 | AM7: 성비 | AN7: 인구수 | AO7: 구성비 | AP7: 성비
B8: 합 계 | C8: 계 | D8: 170,803 | E8: 100.00 | F8: 103.47 | G8: 13,983 | H8: 100.00 | I8: 110.78 | J8: 6,541 | K8: 100.00 | L8: 110.52 | M8: 11,553 | N8: 100.00 | O8: 104.73 | P8: 15,530 | Q8: 100.00 | R8: 98.72 | S8: 26,358 | T8: 100.00 | U8: 98.15 | V8: 18,841 | W8: 100.00 | X8: 108.95 | Y8: 14,557 | Z8: 100.00 | AA8: 106.92 | AB8: 16,259 | AC8: 100.00 | AD8: 104.46 | AE8: 13,203 | AF8: 100.00 | AG8: 115.98 | AH8: 6,202 | AI8: 100.00 | AJ8: 118.84 | AK8: 12,565 | AL8: 100.00 | AM8: 87.93 | AN8: 15,211 | AO8: 100.00 | AP8: 94.84
C9: 남 | D9: 86,858 | E9: 100.00 | G9: 7,349 | H9: 100.00 | J9: 3,434 | K9: 100.00 | M9: 5,910 | N9: 100.00 | P9: 7,715 | Q9: 100.00 | S9: 13,056 | T9: 100.00 | V9: 9,824 | W9: 100.00 | Y9: 7,522 | Z9: 100.00 | AB9: 8,307 | AC9: 100.00 | AE9: 7,090 | AF9: 100.00 | AH9: 3,368 | AI9: 100.00 | AK9: 5,879 | AL9: 100.00 | AN9: 7,404 | AO9: 100.00
C10: 여 | D10: 83,945 | E10: 100.00 | G10: 6,634 | H10: 100.00 | J10: 3,107 | K10: 100.00 | M10: 5,643 | N10: 100.00 | P10: 7,815 | Q10: 100.00 | S10: 13,302 | T10: 100.00 | V10: 9,017 | W10: 100.00 | Y10: 7,035 | Z10: 100.00 | AB10: 7,952 | AC10: 100.00 | AE10: 6,113 | AF10: 100.00 | AH10: 2,834 | AI10: 100.00 | AK10: 6,686 | AL10: 100.00 | AN10: 7,807 | AO10: 100.00
B11: 0세 | C11: 계 | D11: 785 | E11: 0.46 | F11: 123.65 | G11: 33 | H11: 0.24 | I11: 175.00 | J11: 16 | K11: 0.24 | L11: 166.67 | M11: 32 | N11: 0.28 | O11: 255.56 | P11: 50 | Q11: 0.32 | R11: 108.33 | S11: 93 | T11: 0.35 | U11: 132.50 | V11: 49 | W11: 0.26 | X11: 157.89 | Y11: 117 | Z11: 0.80 | AA11: 105.26 | AB11: 138 | AC11: 0.85 | AD11: 97.14 | AE11: 64 | AF11: 0.48 | AG11: 120.69 | AH11: 33 | AI11: 0.53 | AJ11: 83.33 | AK11: 88 | AL11: 0.70 | AM11: 158.82 | AN11: 72 | AO11: 0.47 | AP11: 118.18
C12: 남 | D12: 434 | E12: 0.50 | G12: 21 | H12: 0.29 | J12: 10 | K12: 0.29 | M12: 23 | N12: 0.39 | P12: 26 | Q12: 0.34 | S12: 53 | T12: 0.41 | V12: 30 | W12: 0.31 | Y12: 60 | Z12: 0.80 | AB12: 68 | AC12: 0.82 | AE12: 35 | AF12: 0.49 | AH12: 15 | AI12: 0.45 | AK12: 54 | AL12: 0.92 | AN12: 39 | AO12: 0.53
C13: 여 | D13: 351 | E13: 0.42 | G13: 12 | H13: 0.18 | J13: 6 | K13: 0.19 | M13: 9 | N13: 0.16 | P13: 24 | Q13: 0.31 | S13: 40 | T13: 0.30 | V13: 19 | W13: 0.21 | Y13: 57 | Z13: 0.81 | AB13: 70 | AC13: 0.88 | AE13: 29 | AF13: 0.47 | AH13: 18 | AI13: 0.64 | AK13: 34 | AL13: 0.51 | AN13: 33 | AO13: 0.42
B14: 1세 | C14: 계 | D14: 761 | E14: 0.45 | F14: 102.93 | G14: 49 | H14: 0.35 | I14: 133.33 | J14: 19 | K14: 0.29 | L14: 90.00 | M14: 40 | N14: 0.35 | O14: 73.91 | P14: 52 | Q14: 0.33 | R14: 160.00 | S14: 116 | T14: 0.44 | U14: 81.25 | V14: 58 | W14: 0.31 | X14: 107.14 | Y14: 88 | Z14: 0.60 | AA14: 109.52 | AB14: 150 | AC14: 0.92 | AD14: 80.72 | AE14: 45 | AF14: 0.34 | AG14: 114.29 | AH14: 25 | AI14: 0.40 | AJ14: 78.57 | AK14: 79 | AL14: 0.63 | AM14: 125.71 | AN14: 40 | AO14: 0.26 | AP14: 185.71
C15: 남 | D15: 386 | E15: 0.44 | G15: 28 | H15: 0.38 | J15: 9 | K15: 0.26 | M15: 17 | N15: 0.29 | P15: 32 | Q15: 0.41 | S15: 52 | T15: 0.40 | V15: 30 | W15: 0.31 | Y15: 46 | Z15: 0.61 | AB15: 67 | AC15: 0.81 | AE15: 24 | AF15: 0.34 | AH15: 11 | AI15: 0.33 | AK15: 44 | AL15: 0.75 | AN15: 26 | AO15: 0.35
C16: 여 | D16: 375 | E16: 0.45 | G16: 21 | H16: 0.32 | J16: 10 | K16: 0.32 | M16: 23 | N16: 0.41 | P16: 20 | Q16: 0.26 | S16: 64 | T16: 0.48 | V16: 28 | W16: 0.31 | Y16: 42 | Z16: 0.60 | AB16: 83 | AC16: 1.04 | AE16: 21 | AF16: 0.34 | AH16: 14 | AI16: 0.49 | AK16: 35 | AL16: 0.52 | AN16: 14 | AO16: 0.18
B17: 2세 | C17: 계 | D17: 769 | E17: 0.45 | F17: 107.28 | G17: 42 | H17: 0.30 | I17: 90.91 | J17: 18 | K17: 0.28 | L17: 125.00 | M17: 37 | N17: 0.32 | O17: 117.65 | P17: 51 | Q17: 0.33 | R17: 82.14 | S17: 115 | T17: 0.44 | U17: 88.52 | V17: 60 | W17: 0.32 | X17: 130.77 | Y17: 79 | Z17: 0.54 | AA17: 88.10 | AB17: 138 | AC17: 0.85 | AD17: 130.00 | AE17: 62 | AF17: 0.47 | AG17: 113.79 | AH17: 25 | AI17: 0.40 | AJ17: 108.33 | AK17: 93 | AL17: 0.74 | AM17: 93.75 | AN17: 49 | AO17: 0.32 | AP17: 172.22
C18: 남 | D18: 398 | E18: 0.46 | G18: 20 | H18: 0.27 | J18: 10 | K18: 0.29 | M18: 20 | N18: 0.34 | P18: 23 | Q18: 0.30 | S18: 54 | T18: 0.41 | V18: 34 | W18: 0.35 | Y18: 37 | Z18: 0.49 | AB18: 78 | AC18: 0.94 | AE18: 33 | AF18: 0.47 | AH18: 13 | AI18: 0.39 | AK18: 45 | AL18: 0.77 | AN18: 31 | AO18: 0.42
C19: 여 | D19: 371 | E19: 0.44 | G19: 22 | H19: 0.33 | J19: 8 | K19: 0.26 | M19: 17 | N19: 0.30 | P19: 28 | Q19: 0.36 | S19: 61 | T19: 0.46 | V19: 26 | W19: 0.29 | Y19: 42 | Z19: 0.60 | AB19: 60 | AC19: 0.75 | AE19: 29 | AF19: 0.47 | AH19: 12 | AI19: 0.42 | AK19: 48 | AL19: 0.72 | AN19: 18 | AO19: 0.23
B20: 3세 | C20: 계 | D20: 769 | E20: 0.45 | F20: 110.68 | G20: 35 | H20: 0.25 | I20: 191.67 | J20: 14 | K20: 0.21 | L20: 27.27 | M20: 38 | N20: 0.33 | O20: 90.00 | P20: 55 | Q20: 0.35 | R20: 129.17 | S20: 128 | T20: 0.49 | U20: 137.04 | V20: 55 | W20: 0.29 | X20: 103.70 | Y20: 72 | Z20: 0.49 | AA20: 100.00 | AB20: 150 | AC20: 0.92 | AD20: 97.37 | AE20: 66 | AF20: 0.50 | AG20: 94.12 | AH20: 32 | AI20: 0.52 | AJ20: 113.33 | AK20: 66 | AL20: 0.53 | AM20: 78.38 | AN20: 58 | AO20: 0.38 | AP20: 205.26
C21: 남 | D21: 404 | E21: 0.47 | G21: 23 | H21: 0.31 | J21: 3 | K21: 0.09 | M21: 18 | N21: 0.30 | P21: 31 | Q21: 0.40 | S21: 74 | T21: 0.57 | V21: 28 | W21: 0.29 | Y21: 36 | Z21: 0.48 | AB21: 74 | AC21: 0.89 | AE21: 32 | AF21: 0.45 | AH21: 17 | AI21: 0.50 | AK21: 29 | AL21: 0.49 | AN21: 39 | AO21: 0.53
C22: 여 | D22: 365 | E22: 0.43 | G22: 12 | H22: 0.18 | J22: 11 | K22: 0.35 | M22: 20 | N22: 0.35 | P22: 24 | Q22: 0.31 | S22: 54 | T22: 0.41 | V22: 27 | W22: 0.30 | Y22: 36 | Z22: 0.51 | AB22: 76 | AC22: 0.96 | AE22: 34 | AF22: 0.56 | AH22: 15 | AI22: 0.53 | AK22: 37 | AL22: 0.55 | AN22: 19 | AO22: 0.24
B23: 4세 | C23: 계 | D23: 862 | E23: 0.50 | F23: 94.14 | G23: 49 | H23: 0.35 | I23: 75.00 | J23: 15 | K23: 0.23 | L23: 114.29 | M23: 48 | N23: 0.42 | O23: 77.78 | P23: 64 | Q23: 0.41 | R23: 137.04 | S23: 128 | T23: 0.49 | U23: 75.34 | V23: 73 | W23: 0.39 | X23: 87.18 | Y23: 72 | Z23: 0.49 | AA23: 105.71 | AB23: 151 | AC23: 0.93 | AD23: 122.06 | AE23: 60 | AF23: 0.45 | AG23: 106.90 | AH23: 34 | AI23: 0.55 | AJ23: 100.00 | AK23: 85 | AL23: 0.68 | AM23: 93.18 | AN23: 83 | AO23: 0.55 | AP23: 66.00
C24: 남 | D24: 418 | E24: 0.48 | G24: 21 | H24: 0.29 | J24: 8 | K24: 0.23 | M24: 21 | N24: 0.36 | P24: 37 | Q24: 0.48 | S24: 55 | T24: 0.42 | V24: 34 | W24: 0.35 | Y24: 37 | Z24: 0.49 | AB24: 83 | AC24: 1.00 | AE24: 31 | AF24: 0.44 | AH24: 17 | AI24: 0.50 | AK24: 41 | AL24: 0.70 | AN24: 33 | AO24: 0.45
C25: 여 | D25: 444 | E25: 0.53 | G25: 28 | H25: 0.42 | J25: 7 | K25: 0.23 | M25: 27 | N25: 0.48 | P25: 27 | Q25: 0.35 | S25: 73 | T25: 0.55 | V25: 39 | W25: 0.43 | Y25: 35 | Z25: 0.50 | AB25: 68 | AC25: 0.86 | AE25: 29 | AF25: 0.47 | AH25: 17 | AI25: 0.60 | AK25: 44 | AL25: 0.66 | AN25: 50 | AO25: 0.64
B26: 5세 | C26: 계 | D26: 872 | E26: 0.51 | F26: 98.18 | G26: 46 | H26: 0.33 | I26: 119.05 | J26: 18 | K26: 0.28 | L26: 100.00 | M26: 51 | N26: 0.44 | O26: 112.50 | P26: 78 | Q26: 0.50 | R26: 136.36 | S26: 161 | T26: 0.61 | U26: 101.25 | V26: 64 | W26: 0.34 | X26: 93.94 | Y26: 84 | Z26: 0.58 | AA26: 82.61 | AB26: 164 | AC26: 1.01 | AD26: 92.94 | AE26: 50 | AF26: 0.38 | AG26: 100.00 | AH26: 25 | AI26: 0.40 | AJ26: 92.31 | AK26: 57 | AL26: 0.45 | AM26: 96.55 | AN26: 74 | AO26: 0.49 | AP26: 76.19
C27: 남 | D27: 432 | E27: 0.50 | G27: 25 | H27: 0.34 | J27: 9 | K27: 0.26 | M27: 27 | N27: 0.46 | P27: 45 | Q27: 0.58 | S27: 81 | T27: 0.62 | V27: 31 | W27: 0.32 | Y27: 38 | Z27: 0.51 | AB27: 79 | AC27: 0.95 | AE27: 25 | AF27: 0.35 | AH27: 12 | AI27: 0.36 | AK27: 28 | AL27: 0.48 | AN27: 32 | AO27: 0.43
C28: 여 | D28: 440 | E28: 0.52 | G28: 21 | H28: 0.32 | J28: 9 | K28: 0.29 | M28: 24 | N28: 0.43 | P28: 33 | Q28: 0.42 | S28: 80 | T28: 0.60 | V28: 33 | W28: 0.37 | Y28: 46 | Z28: 0.65 | AB28: 85 | AC28: 1.07 | AE28: 25 | AF28: 0.41 | AH28: 13 | AI28: 0.46 | AK28: 29 | AL28: 0.43 | AN28: 42 | AO28: 0.54
B29: 6세 | C29: 계 | D29: 1,046 | E29: 0.61 | F29: 99.24 | G29: 51 | H29: 0.36 | I29: 75.86 | J29: 18 | K29: 0.28 | L29: 125.00 | M29: 55 | N29: 0.48 | O29: 77.42 | P29: 91 | Q29: 0.59 | R29: 93.62 | S29: 185 | T29: 0.70 | U29: 88.78 | V29: 87 | W29: 0.46 | X29: 97.73 | Y29: 90 | Z29: 0.62 | AA29: 125.00 | AB29: 201 | AC29: 1.24 | AD29: 120.88 | AE29: 65 | AF29: 0.49 | AG29: 116.67 | AH29: 31 | AI29: 0.50 | AJ29: 82.35 | AK29: 85 | AL29: 0.68 | AM29: 63.46 | AN29: 87 | AO29: 0.57 | AP29: 128.95
C30: 남 | D30: 521 | E30: 0.60 | G30: 22 | H30: 0.30 | J30: 10 | K30: 0.29 | M30: 24 | N30: 0.41 | P30: 44 | Q30: 0.57 | S30: 87 | T30: 0.67 | V30: 43 | W30: 0.44 | Y30: 50 | Z30: 0.66 | AB30: 110 | AC30: 1.32 | AE30: 35 | AF30: 0.49 | AH30: 14 | AI30: 0.42 | AK30: 33 | AL30: 0.56 | AN30: 49 | AO30: 0.66
C31: 여 | D31: 525 | E31: 0.63 | G31: 29 | H31: 0.44 | J31: 8 | K31: 0.26 | M31: 31 | N31: 0.55 | P31: 47 | Q31: 0.60 | S31: 98 | T31: 0.74 | V31: 44 | W31: 0.49 | Y31: 40 | Z31: 0.57 | AB31: 91 | AC31: 1.14 | AE31: 30 | AF31: 0.49 | AH31: 17 | AI31: 0.60 | AK31: 52 | AL31: 0.78 | AN31: 38 | AO31: 0.49
B32: 7세 | C32: 계 | D32: 1,079 | E32: 0.63 | F32: 95.47 | G32: 53 | H32: 0.38 | I32: 82.76 | J32: 27 | K32: 0.41 | L32: 200.00 | M32: 57 | N32: 0.49 | O32: 111.11 | P32: 86 | Q32: 0.55 | R32: 91.11 | S32: 210 | T32: 0.80 | U32: 87.50 | V32: 79 | W32: 0.42 | X32: 79.55 | Y32: 87 | Z32: 0.60 | AA32: 81.25 | AB32: 215 | AC32: 1.32 | AD32: 83.76 | AE32: 50 | AF32: 0.38 | AG32: 108.33 | AH32: 40 | AI32: 0.64 | AJ32: 150.00 | AK32: 73 | AL32: 0.58 | AM32: 143.33 | AN32: 102 | AO32: 0.67 | AP32: 100.00
C33: 남 | D33: 527 | E33: 0.61 | G33: 24 | H33: 0.33 | J33: 18 | K33: 0.52 | M33: 30 | N33: 0.51 | P33: 41 | Q33: 0.53 | S33: 98 | T33: 0.75 | V33: 35 | W33: 0.36 | Y33: 39 | Z33: 0.52 | AB33: 98 | AC33: 1.18 | AE33: 26 | AF33: 0.37 | AH33: 24 | AI33: 0.71 | AK33: 43 | AL33: 0.73 | AN33: 51 | AO33: 0.69
C34: 여 | D34: 552 | E34: 0.66 | G34: 29 | H34: 0.44 | J34: 9 | K34: 0.29 | M34: 27 | N34: 0.48 | P34: 45 | Q34: 0.58 | S34: 112 | T34: 0.84 | V34: 44 | W34: 0.49 | Y34: 48 | Z34: 0.68 | AB34: 117 | AC34: 1.47 | AE34: 24 | AF34: 0.39 | AH34: 16 | AI34: 0.56 | AK34: 30 | AL34: 0.45 | AN34: 51 | AO34: 0.65
B35: 8세 | C35: 계 | D35: 1,189 | E35: 0.70 | F35: 115.40 | G35: 69 | H35: 0.49 | I35: 102.94 | J35: 27 | K35: 0.41 | L35: 107.69 | M35: 59 | N35: 0.51 | O35: 110.71 | P35: 101 | Q35: 0.65 | R35: 98.04 | S35: 221 | T35: 0.84 | U35: 132.63 | V35: 103 | W35: 0.55 | X35: 119.15 | Y35: 95 | Z35: 0.65 | AA35: 93.88 | AB35: 233 | AC35: 1.43 | AD35: 142.71 | AE35: 67 | AF35: 0.51 | AG35: 131.03 | AH35: 41 | AI35: 0.66 | AJ35: 86.36 | AK35: 78 | AL35: 0.62 | AM35: 90.24 | AN35: 95 | AO35: 0.62 | AP35: 102.13
C36: 남 | D36: 637 | E36: 0.73 | G36: 35 | H36: 0.48 | J36: 14 | K36: 0.41 | M36: 31 | N36: 0.52 | P36: 50 | Q36: 0.65 | S36: 126 | T36: 0.97 | V36: 56 | W36: 0.57 | Y36: 46 | Z36: 0.61 | AB36: 137 | AC36: 1.65 | AE36: 38 | AF36: 0.54 | AH36: 19 | AI36: 0.56 | AK36: 37 | AL36: 0.63 | AN36: 48 | AO36: 0.65
C37: 여 | D37: 552 | E37: 0.66 | G37: 34 | H37: 0.51 | J37: 13 | K37: 0.42 | M37: 28 | N37: 0.50 | P37: 51 | Q37: 0.65 | S37: 95 | T37: 0.71 | V37: 47 | W37: 0.52 | Y37: 49 | Z37: 0.70 | AB37: 96 | AC37: 1.21 | AE37: 29 | AF37: 0.47 | AH37: 22 | AI37: 0.78 | AK37: 41 | AL37: 0.61 | AN37: 47 | AO37: 0.60
B38: 9세 | C38: 계 | D38: 1,216 | E38: 0.71 | F38: 110.02 | G38: 50 | H38: 0.36 | I38: 138.10 | J38: 29 | K38: 0.44 | L38: 190.00 | M38: 68 | N38: 0.59 | O38: 126.67 | P38: 97 | Q38: 0.62 | R38: 106.38 | S38: 254 | T38: 0.96 | U38: 88.15 | V38: 85 | W38: 0.45 | X38: 129.73 | Y38: 95 | Z38: 0.65 | AA38: 102.13 | AB38: 232 | AC38: 1.43 | AD38: 107.14 | AE38: 68 | AF38: 0.52 | AG38: 161.54 | AH38: 43 | AI38: 0.69 | AJ38: 168.75 | AK38: 89 | AL38: 0.71 | AM38: 78.00 | AN38: 106 | AO38: 0.70 | AP38: 120.83
C39: 남 | D39: 637 | E39: 0.73 | G39: 29 | H39: 0.39 | J39: 19 | K39: 0.55 | M39: 38 | N39: 0.64 | P39: 50 | Q39: 0.65 | S39: 119 | T39: 0.91 | V39: 48 | W39: 0.49 | Y39: 48 | Z39: 0.64 | AB39: 120 | AC39: 1.44 | AE39: 42 | AF39: 0.59 | AH39: 27 | AI39: 0.80 | AK39: 39 | AL39: 0.66 | AN39: 58 | AO39: 0.78
C40: 여 | D40: 579 | E40: 0.69 | G40: 21 | H40: 0.32 | J40: 10 | K40: 0.32 | M40: 30 | N40: 0.53 | P40: 47 | Q40: 0.60 | S40: 135 | T40: 1.01 | V40: 37 | W40: 0.41 | Y40: 47 | Z40: 0.67 | AB40: 112 | AC40: 1.41 | AE40: 26 | AF40: 0.43 | AH40: 16 | AI40: 0.56 | AK40: 50 | AL40: 0.75 | AN40: 48 | AO40: 0.61
B41: 10세 | C41: 계 | D41: 1,281 | E41: 0.75 | F41: 100.47 | G41: 78 | H41: 0.56 | I41: 90.24 | J41: 35 | K41: 0.54 | L41: 94.44 | M41: 69 | N41: 0.60 | O41: 91.67 | P41: 93 | Q41: 0.60 | R41: 86.00 | S41: 275 | T41: 1.04 | U41: 109.92 | V41: 108 | W41: 0.57 | X41: 120.41 | Y41: 98 | Z41: 0.67 | AA41: 108.51 | AB41: 208 | AC41: 1.28 | AD41: 100.00 | AE41: 78 | AF41: 0.59 | AG41: 73.33 | AH41: 55 | AI41: 0.89 | AJ41: 83.33 | AK41: 89 | AL41: 0.71 | AM41: 102.27 | AN41: 95 | AO41: 0.62 | AP41: 115.91
C42: 남 | D42: 642 | E42: 0.74 | G42: 37 | H42: 0.50 | J42: 17 | K42: 0.50 | M42: 33 | N42: 0.56 | P42: 43 | Q42: 0.56 | S42: 144 | T42: 1.10 | V42: 59 | W42: 0.60 | Y42: 51 | Z42: 0.68 | AB42: 104 | AC42: 1.25 | AE42: 33 | AF42: 0.47 | AH42: 25 | AI42: 0.74 | AK42: 45 | AL42: 0.77 | AN42: 51 | AO42: 0.69
C43: 여 | D43: 639 | E43: 0.76 | G43: 41 | H43: 0.62 | J43: 18 | K43: 0.58 | M43: 36 | N43: 0.64 | P43: 50 | Q43: 0.64 | S43: 131 | T43: 0.98 | V43: 49 | W43: 0.54 | Y43: 47 | Z43: 0.67 | AB43: 104 | AC43: 1.31 | AE43: 45 | AF43: 0.74 | AH43: 30 | AI43: 1.06 | AK43: 44 | AL43: 0.66 | AN43: 44 | AO43: 0.56
B44: 11세 | C44: 계 | D44: 1,368 | E44: 0.80 | F44: 110.46 | G44: 84 | H44: 0.60 | I44: 121.05 | J44: 39 | K44: 0.60 | L44: 95.00 | M44: 86 | N44: 0.74 | O44: 115.00 | P44: 118 | Q44: 0.76 | R44: 93.44 | S44: 287 | T44: 1.09 | U44: 111.03 | V44: 122 | W44: 0.65 | X44: 106.78 | Y44: 98 | Z44: 0.67 | AA44: 92.16 | AB44: 204 | AC44: 1.25 | AD44: 126.67 | AE44: 72 | AF44: 0.55 | AG44: 157.14 | AH44: 48 | AI44: 0.77 | AJ44: 84.62 | AK44: 88 | AL44: 0.70 | AM44: 91.30 | AN44: 122 | AO44: 0.80 | AP44: 121.82
C45: 남 | D45: 718 | E45: 0.83 | G45: 46 | H45: 0.63 | J45: 19 | K45: 0.55 | M45: 46 | N45: 0.78 | P45: 57 | Q45: 0.74 | S45: 151 | T45: 1.16 | V45: 63 | W45: 0.64 | Y45: 47 | Z45: 0.62 | AB45: 114 | AC45: 1.37 | AE45: 44 | AF45: 0.62 | AH45: 22 | AI45: 0.65 | AK45: 42 | AL45: 0.71 | AN45: 67 | AO45: 0.90
C46: 여 | D46: 650 | E46: 0.77 | G46: 38 | H46: 0.57 | J46: 20 | K46: 0.64 | M46: 40 | N46: 0.71 | P46: 61 | Q46: 0.78 | S46: 136 | T46: 1.02 | V46: 59 | W46: 0.65 | Y46: 51 | Z46: 0.72 | AB46: 90 | AC46: 1.13 | AE46: 28 | AF46: 0.46 | AH46: 26 | AI46: 0.92 | AK46: 46 | AL46: 0.69 | AN46: 55 | AO46: 0.70
B47: 12세 | C47: 계 | D47: 1,414 | E47: 0.83 | F47: 106.73 | G47: 97 | H47: 0.69 | I47: 162.16 | J47: 38 | K47: 0.58 | L47: 171.43 | M47: 80 | N47: 0.69 | O47: 142.42 | P47: 121 | Q47: 0.78 | R47: 105.08 | S47: 316 | T47: 1.20 | U47: 96.27 | V47: 126 | W47: 0.67 | X47: 96.88 | Y47: 91 | Z47: 0.63 | AA47: 111.63 | AB47: 202 | AC47: 1.24 | AD47: 96.12 | AE47: 100 | AF47: 0.76 | AG47: 96.08 | AH47: 56 | AI47: 0.90 | AJ47: 69.70 | AK47: 82 | AL47: 0.65 | AM47: 110.26 | AN47: 105 | AO47: 0.69 | AP47: 123.40
C48: 남 | D48: 730 | E48: 0.84 | G48: 60 | H48: 0.82 | J48: 24 | K48: 0.70 | M48: 47 | N48: 0.80 | P48: 62 | Q48: 0.80 | S48: 155 | T48: 1.19 | V48: 62 | W48: 0.63 | Y48: 48 | Z48: 0.64 | AB48: 99 | AC48: 1.19 | AE48: 49 | AF48: 0.69 | AH48: 23 | AI48: 0.68 | AK48: 43 | AL48: 0.73 | AN48: 58 | AO48: 0.78
C49: 여 | D49: 684 | E49: 0.81 | G49: 37 | H49: 0.56 | J49: 14 | K49: 0.45 | M49: 33 | N49: 0.58 | P49: 59 | Q49: 0.75 | S49: 161 | T49: 1.21 | V49: 64 | W49: 0.71 | Y49: 43 | Z49: 0.61 | AB49: 103 | AC49: 1.30 | AE49: 51 | AF49: 0.83 | AH49: 33 | AI49: 1.16 | AK49: 39 | AL49: 0.58 | AN49: 47 | AO49: 0.60
B50: 13세 | C50: 계 | D50: 1,387 | E50: 0.81 | F50: 110.47 | G50: 86 | H50: 0.62 | I50: 100.00 | J50: 42 | K50: 0.64 | L50: 100.00 | M50: 75 | N50: 0.65 | O50: 102.70 | P50: 135 | Q50: 0.87 | R50: 107.69 | S50: 305 | T50: 1.16 | U50: 114.79 | V50: 134 | W50: 0.71 | X50: 123.33 | Y50: 105 | Z50: 0.72 | AA50: 90.91 | AB50: 148 | AC50: 0.91 | AD50: 100.00 | AE50: 92 | AF50: 0.70 | AG50: 109.09 | AH50: 46 | AI50: 0.74 | AJ50: 119.05 | AK50: 91 | AL50: 0.72 | AM50: 116.67 | AN50: 128 | AO50: 0.84 | AP50: 132.73
C51: 남 | D51: 728 | E51: 0.84 | G51: 43 | H51: 0.59 | J51: 21 | K51: 0.61 | M51: 38 | N51: 0.64 | P51: 70 | Q51: 0.91 | S51: 163 | T51: 1.25 | V51: 74 | W51: 0.75 | Y51: 50 | Z51: 0.66 | AB51: 74 | AC51: 0.89 | AE51: 48 | AF51: 0.68 | AH51: 25 | AI51: 0.74 | AK51: 49 | AL51: 0.83 | AN51: 73 | AO51: 0.99
C52: 여 | D52: 659 | E52: 0.79 | G52: 43 | H52: 0.65 | J52: 21 | K52: 0.68 | M52: 37 | N52: 0.66 | P52: 65 | Q52: 0.83 | S52: 142 | T52: 1.07 | V52: 60 | W52: 0.67 | Y52: 55 | Z52: 0.78 | AB52: 74 | AC52: 0.93 | AE52: 44 | AF52: 0.72 | AH52: 21 | AI52: 0.74 | AK52: 42 | AL52: 0.63 | AN52: 55 | AO52: 0.70
B53: 14세 | C53: 계 | D53: 1,415 | E53: 0.83 | F53: 103.30 | G53: 89 | H53: 0.64 | I53: 122.50 | J53: 42 | K53: 0.64 | L53: 133.33 | M53: 96 | N53: 0.83 | O53: 128.57 | P53: 133 | Q53: 0.86 | R53: 107.81 | S53: 335 | T53: 1.27 | U53: 92.53 | V53: 133 | W53: 0.71 | X53: 125.42 | Y53: 83 | Z53: 0.57 | AA53: 102.44 | AB53: 160 | AC53: 0.98 | AD53: 113.33 | AE53: 90 | AF53: 0.68 | AG53: 83.67 | AH53: 61 | AI53: 0.98 | AJ53: 60.53 | AK53: 93 | AL53: 0.74 | AM53: 86.00 | AN53: 100 | AO53: 0.66 | AP53: 117.39
C54: 남 | D54: 719 | E54: 0.83 | G54: 49 | H54: 0.67 | J54: 24 | K54: 0.70 | M54: 54 | N54: 0.91 | P54: 69 | Q54: 0.89 | S54: 161 | T54: 1.23 | V54: 74 | W54: 0.75 | Y54: 42 | Z54: 0.56 | AB54: 85 | AC54: 1.02 | AE54: 41 | AF54: 0.58 | AH54: 23 | AI54: 0.68 | AK54: 43 | AL54: 0.73 | AN54: 54 | AO54: 0.73
C55: 여 | D55: 696 | E55: 0.83 | G55: 40 | H55: 0.60 | J55: 18 | K55: 0.58 | M55: 42 | N55: 0.74 | P55: 64 | Q55: 0.82 | S55: 174 | T55: 1.31 | V55: 59 | W55: 0.65 | Y55: 41 | Z55: 0.58 | AB55: 75 | AC55: 0.94 | AE55: 49 | AF55: 0.80 | AH55: 38 | AI55: 1.34 | AK55: 50 | AL55: 0.75 | AN55: 46 | AO55: 0.59
B56: 15세 | C56: 계 | D56: 1,541 | E56: 0.90 | F56: 106.02 | G56: 103 | H56: 0.74 | I56: 94.34 | J56: 55 | K56: 0.84 | L56: 129.17 | M56: 80 | N56: 0.69 | O56: 116.22 | P56: 165 | Q56: 1.06 | R56: 108.86 | S56: 326 | T56: 1.24 | U56: 87.36 | V56: 128 | W56: 0.68 | X56: 128.57 | Y56: 105 | Z56: 0.72 | AA56: 90.91 | AB56: 142 | AC56: 0.87 | AD56: 108.82 | AE56: 117 | AF56: 0.89 | AG56: 134.00 | AH56: 69 | AI56: 1.11 | AJ56: 122.58 | AK56: 112 | AL56: 0.89 | AM56: 119.61 | AN56: 139 | AO56: 0.91 | AP56: 98.57
C57: 남 | D57: 793 | E57: 0.91 | G57: 50 | H57: 0.68 | J57: 31 | K57: 0.90 | M57: 43 | N57: 0.73 | P57: 86 | Q57: 1.11 | S57: 152 | T57: 1.16 | V57: 72 | W57: 0.73 | Y57: 50 | Z57: 0.66 | AB57: 74 | AC57: 0.89 | AE57: 67 | AF57: 0.94 | AH57: 38 | AI57: 1.13 | AK57: 61 | AL57: 1.04 | AN57: 69 | AO57: 0.93
C58: 여 | D58: 748 | E58: 0.89 | G58: 53 | H58: 0.80 | J58: 24 | K58: 0.77 | M58: 37 | N58: 0.66 | P58: 79 | Q58: 1.01 | S58: 174 | T58: 1.31 | V58: 56 | W58: 0.62 | Y58: 55 | Z58: 0.78 | AB58: 68 | AC58: 0.86 | AE58: 50 | AF58: 0.82 | AH58: 31 | AI58: 1.09 | AK58: 51 | AL58: 0.76 | AN58: 70 | AO58: 0.90
B59: 16세 | C59: 계 | D59: 1,509 | E59: 0.88 | F59: 112.54 | G59: 79 | H59: 0.56 | I59: 146.88 | J59: 41 | K59: 0.63 | L59: 105.00 | M59: 84 | N59: 0.73 | O59: 100.00 | P59: 161 | Q59: 1.04 | R59: 133.33 | S59: 386 | T59: 1.46 | U59: 100.00 | V59: 141 | W59: 0.75 | X59: 101.43 | Y59: 118 | Z59: 0.81 | AA59: 218.92 | AB59: 125 | AC59: 0.77 | AD59: 101.61 | AE59: 96 | AF59: 0.73 | AG59: 95.92 | AH59: 49 | AI59: 0.79 | AJ59: 145.00 | AK59: 88 | AL59: 0.70 | AM59: 95.56 | AN59: 141 | AO59: 0.93 | AP59: 98.59
C60: 남 | D60: 799 | E60: 0.92 | G60: 47 | H60: 0.64 | J60: 21 | K60: 0.61 | M60: 42 | N60: 0.71 | P60: 92 | Q60: 1.19 | S60: 193 | T60: 1.48 | V60: 71 | W60: 0.72 | Y60: 81 | Z60: 1.08 | AB60: 63 | AC60: 0.76 | AE60: 47 | AF60: 0.66 | AH60: 29 | AI60: 0.86 | AK60: 43 | AL60: 0.73 | AN60: 70 | AO60: 0.95
C61: 여 | D61: 710 | E61: 0.85 | G61: 32 | H61: 0.48 | J61: 20 | K61: 0.64 | M61: 42 | N61: 0.74 | P61: 69 | Q61: 0.88 | S61: 193 | T61: 1.45 | V61: 70 | W61: 0.78 | Y61: 37 | Z61: 0.53 | AB61: 62 | AC61: 0.78 | AE61: 49 | AF61: 0.80 | AH61: 20 | AI61: 0.71 | AK61: 45 | AL61: 0.67 | AN61: 71 | AO61: 0.91
B62: 17세 | C62: 계 | D62: 1,466 | E62: 0.86 | F62: 111.85 | G62: 77 | H62: 0.55 | I62: 83.33 | J62: 34 | K62: 0.52 | L62: 142.86 | M62: 95 | N62: 0.82 | O62: 156.76 | P62: 148 | Q62: 0.95 | R62: 124.24 | S62: 355 | T62: 1.35 | U62: 112.57 | V62: 144 | W62: 0.76 | X62: 94.59 | Y62: 101 | Z62: 0.69 | AA62: 165.79 | AB62: 127 | AC62: 0.78 | AD62: 111.67 | AE62: 98 | AF62: 0.74 | AG62: 92.16 | AH62: 40 | AI62: 0.64 | AJ62: 73.91 | AK62: 112 | AL62: 0.89 | AM62: 119.61 | AN62: 135 | AO62: 0.89 | AP62: 95.65
C63: 남 | D63: 774 | E63: 0.89 | G63: 35 | H63: 0.48 | J63: 20 | K63: 0.58 | M63: 58 | N63: 0.98 | P63: 82 | Q63: 1.06 | S63: 188 | T63: 1.44 | V63: 70 | W63: 0.71 | Y63: 63 | Z63: 0.84 | AB63: 67 | AC63: 0.81 | AE63: 47 | AF63: 0.66 | AH63: 17 | AI63: 0.50 | AK63: 61 | AL63: 1.04 | AN63: 66 | AO63: 0.89
C64: 여 | D64: 692 | E64: 0.82 | G64: 42 | H64: 0.63 | J64: 14 | K64: 0.45 | M64: 37 | N64: 0.66 | P64: 66 | Q64: 0.84 | S64: 167 | T64: 1.26 | V64: 74 | W64: 0.82 | Y64: 38 | Z64: 0.54 | AB64: 60 | AC64: 0.75 | AE64: 51 | AF64: 0.83 | AH64: 23 | AI64: 0.81 | AK64: 51 | AL64: 0.76 | AN64: 69 | AO64: 0.88
B65: 18세 | C65: 계 | D65: 1,571 | E65: 0.92 | F65: 114.32 | G65: 89 | H65: 0.64 | I65: 147.22 | J65: 52 | K65: 0.79 | L65: 126.09 | M65: 86 | N65: 0.74 | O65: 86.96 | P65: 145 | Q65: 0.93 | R65: 98.63 | S65: 355 | T65: 1.35 | U65: 119.14 | V65: 157 | W65: 0.83 | X65: 145.31 | Y65: 116 | Z65: 0.80 | AA65: 114.81 | AB65: 135 | AC65: 0.83 | AD65: 107.69 | AE65: 121 | AF65: 0.92 | AG65: 108.62 | AH65: 48 | AI65: 0.77 | AJ65: 108.70 | AK65: 103 | AL65: 0.82 | AM65: 90.74 | AN65: 164 | AO65: 1.08 | AP65: 118.67
C66: 남 | D66: 838 | E66: 0.96 | G66: 53 | H66: 0.72 | J66: 29 | K66: 0.84 | M66: 40 | N66: 0.68 | P66: 72 | Q66: 0.93 | S66: 193 | T66: 1.48 | V66: 93 | W66: 0.95 | Y66: 62 | Z66: 0.82 | AB66: 70 | AC66: 0.84 | AE66: 63 | AF66: 0.89 | AH66: 25 | AI66: 0.74 | AK66: 49 | AL66: 0.83 | AN66: 89 | AO66: 1.20
C67: 여 | D67: 733 | E67: 0.87 | G67: 36 | H67: 0.54 | J67: 23 | K67: 0.74 | M67: 46 | N67: 0.82 | P67: 73 | Q67: 0.93 | S67: 162 | T67: 1.22 | V67: 64 | W67: 0.71 | Y67: 54 | Z67: 0.77 | AB67: 65 | AC67: 0.82 | AE67: 58 | AF67: 0.95 | AH67: 23 | AI67: 0.81 | AK67: 54 | AL67: 0.81 | AN67: 75 | AO67: 0.96
B68: 19세 | C68: 계 | D68: 1,722 | E68: 1.01 | F68: 115.25 | G68: 171 | H68: 1.22 | I68: 85.87 | J68: 49 | K68: 0.75 | L68: 206.25 | M68: 86 | N68: 0.74 | O68: 104.76 | P68: 181 | Q68: 1.17 | R68: 120.73 | S68: 385 | T68: 1.46 | U68: 131.93 | V68: 178 | W68: 0.94 | X68: 102.27 | Y68: 116 | Z68: 0.80 | AA68: 110.91 | AB68: 145 | AC68: 0.89 | AD68: 98.63 | AE68: 106 | AF68: 0.80 | AG68: 140.91 | AH68: 52 | AI68: 0.84 | AJ68: 108.00 | AK68: 96 | AL68: 0.76 | AM68: 88.24 | AN68: 157 | AO68: 1.03 | AP68: 137.88
C69: 남 | D69: 922 | E69: 1.06 | G69: 79 | H69: 1.07 | J69: 33 | K69: 0.96 | M69: 44 | N69: 0.74 | P69: 99 | Q69: 1.28 | S69: 219 | T69: 1.68 | V69: 90 | W69: 0.92 | Y69: 61 | Z69: 0.81 | AB69: 72 | AC69: 0.87 | AE69: 62 | AF69: 0.87 | AH69: 27 | AI69: 0.80 | AK69: 45 | AL69: 0.77 | AN69: 91 | AO69: 1.23
C70: 여 | D70: 800 | E70: 0.95 | G70: 92 | H70: 1.39 | J70: 16 | K70: 0.51 | M70: 42 | N70: 0.74 | P70: 82 | Q70: 1.05 | S70: 166 | T70: 1.25 | V70: 88 | W70: 0.98 | Y70: 55 | Z70: 0.78 | AB70: 73 | AC70: 0.92 | AE70: 44 | AF70: 0.72 | AH70: 25 | AI70: 0.88 | AK70: 51 | AL70: 0.76 | AN70: 66 | AO70: 0.85
B71: 20세 | C71: 계 | D71: 1,732 | E71: 1.01 | F71: 107.18 | G71: 192 | H71: 1.37 | I71: 66.96 | J71: 52 | K71: 0.79 | L71: 126.09 | M71: 81 | N71: 0.70 | O71: 118.92 | P71: 184 | Q71: 1.18 | R71: 130.00 | S71: 340 | T71: 1.29 | U71: 120.78 | V71: 194 | W71: 1.03 | X71: 102.08 | Y71: 130 | Z71: 0.89 | AA71: 124.14 | AB71: 117 | AC71: 0.72 | AD71: 112.73 | AE71: 144 | AF71: 1.09 | AG71: 111.76 | AH71: 48 | AI71: 0.77 | AJ71: 128.57 | AK71: 94 | AL71: 0.75 | AM71: 100.00 | AN71: 156 | AO71: 1.03 | AP71: 90.24
C72: 남 | D72: 896 | E72: 1.03 | G72: 77 | H72: 1.05 | J72: 29 | K72: 0.84 | M72: 44 | N72: 0.74 | P72: 104 | Q72: 1.35 | S72: 186 | T72: 1.42 | V72: 98 | W72: 1.00 | Y72: 72 | Z72: 0.96 | AB72: 62 | AC72: 0.75 | AE72: 76 | AF72: 1.07 | AH72: 27 | AI72: 0.80 | AK72: 47 | AL72: 0.80 | AN72: 74 | AO72: 1.00
C73: 여 | D73: 836 | E73: 1.00 | G73: 115 | H73: 1.73 | J73: 23 | K73: 0.74 | M73: 37 | N73: 0.66 | P73: 80 | Q73: 1.02 | S73: 154 | T73: 1.16 | V73: 96 | W73: 1.06 | Y73: 58 | Z73: 0.82 | AB73: 55 | AC73: 0.69 | AE73: 68 | AF73: 1.11 | AH73: 21 | AI73: 0.74 | AK73: 47 | AL73: 0.70 | AN73: 82 | AO73: 1.05
B74: 21세 | C74: 계 | D74: 1,947 | E74: 1.14 | F74: 109.13 | G74: 227 | H74: 1.62 | I74: 65.69 | J74: 49 | K74: 0.75 | L74: 145.00 | M74: 103 | N74: 0.89 | O74: 94.34 | P74: 187 | Q74: 1.20 | R74: 87.00 | S74: 376 | T74: 1.43 | U74: 121.18 | V74: 213 | W74: 1.13 | X74: 117.35 | Y74: 150 | Z74: 1.03 | AA74: 130.77 | AB74: 142 | AC74: 0.87 | AD74: 149.12 | AE74: 169 | AF74: 1.28 | AG74: 103.61 | AH74: 60 | AI74: 0.97 | AJ74: 130.77 | AK74: 99 | AL74: 0.79 | AM74: 98.00 | AN74: 172 | AO74: 1.13 | AP74: 138.89
C75: 남 | D75: 1,016 | E75: 1.17 | G75: 90 | H75: 1.22 | J75: 29 | K75: 0.84 | M75: 50 | N75: 0.85 | P75: 87 | Q75: 1.13 | S75: 206 | T75: 1.58 | V75: 115 | W75: 1.17 | Y75: 85 | Z75: 1.13 | AB75: 85 | AC75: 1.02 | AE75: 86 | AF75: 1.21 | AH75: 34 | AI75: 1.01 | AK75: 49 | AL75: 0.83 | AN75: 100 | AO75: 1.35
C76: 여 | D76: 931 | E76: 1.11 | G76: 137 | H76: 2.07 | J76: 20 | K76: 0.64 | M76: 53 | N76: 0.94 | P76: 100 | Q76: 1.28 | S76: 170 | T76: 1.28 | V76: 98 | W76: 1.09 | Y76: 65 | Z76: 0.92 | AB76: 57 | AC76: 0.72 | AE76: 83 | AF76: 1.36 | AH76: 26 | AI76: 0.92 | AK76: 50 | AL76: 0.75 | AN76: 72 | AO76: 0.92
B77: 22세 | C77: 계 | D77: 2,222 | E77: 1.30 | F77: 113.04 | G77: 257 | H77: 1.84 | I77: 94.70 | J77: 62 | K77: 0.95 | L77: 100.00 | M77: 117 | N77: 1.01 | O77: 116.67 | P77: 195 | Q77: 1.26 | R77: 111.96 | S77: 443 | T77: 1.68 | U77: 123.74 | V77: 259 | W77: 1.37 | X77: 110.57 | Y77: 155 | Z77: 1.06 | AA77: 91.36 | AB77: 137 | AC77: 0.84 | AD77: 158.49 | AE77: 157 | AF77: 1.19 | AG77: 101.28 | AH77: 71 | AI77: 1.14 | AJ77: 69.05 | AK77: 141 | AL77: 1.12 | AM77: 147.37 | AN77: 228 | AO77: 1.50 | AP77: 123.53
C78: 남 | D78: 1,179 | E78: 1.36 | G78: 125 | H78: 1.70 | J78: 31 | K78: 0.90 | M78: 63 | N78: 1.07 | P78: 103 | Q78: 1.34 | S78: 245 | T78: 1.88 | V78: 136 | W78: 1.38 | Y78: 74 | Z78: 0.98 | AB78: 84 | AC78: 1.01 | AE78: 79 | AF78: 1.11 | AH78: 29 | AI78: 0.86 | AK78: 84 | AL78: 1.43 | AN78: 126 | AO78: 1.70
C79: 여 | D79: 1,043 | E79: 1.24 | G79: 132 | H79: 1.99 | J79: 31 | K79: 1.00 | M79: 54 | N79: 0.96 | P79: 92 | Q79: 1.18 | S79: 198 | T79: 1.49 | V79: 123 | W79: 1.36 | Y79: 81 | Z79: 1.15 | AB79: 53 | AC79: 0.67 | AE79: 78 | AF79: 1.28 | AH79: 42 | AI79: 1.48 | AK79: 57 | AL79: 0.85 | AN79: 102 | AO79: 1.31
B80: 23세 | C80: 계 | D80: 2,193 | E80: 1.28 | F80: 132.80 | G80: 264 | H80: 1.89 | I80: 137.84 | J80: 65 | K80: 0.99 | L80: 182.61 | M80: 105 | N80: 0.91 | O80: 150.00 | P80: 184 | Q80: 1.18 | R80: 135.90 | S80: 397 | T80: 1.51 | U80: 110.05 | V80: 302 | W80: 1.60 | X80: 102.68 | Y80: 132 | Z80: 0.91 | AA80: 131.58 | AB80: 161 | AC80: 0.99 | AD80: 140.30 | AE80: 179 | AF80: 1.36 | AG80: 214.04 | AH80: 83 | AI80: 1.34 | AJ80: 130.56 | AK80: 127 | AL80: 1.01 | AM80: 104.84 | AN80: 194 | AO80: 1.28 | AP80: 173.24
C81: 남 | D81: 1,251 | E81: 1.44 | G81: 153 | H81: 2.08 | J81: 42 | K81: 1.22 | M81: 63 | N81: 1.07 | P81: 106 | Q81: 1.37 | S81: 208 | T81: 1.59 | V81: 153 | W81: 1.56 | Y81: 75 | Z81: 1.00 | AB81: 94 | AC81: 1.13 | AE81: 122 | AF81: 1.72 | AH81: 47 | AI81: 1.40 | AK81: 65 | AL81: 1.11 | AN81: 123 | AO81: 1.66
C82: 여 | D82: 942 | E82: 1.12 | G82: 111 | H82: 1.67 | J82: 23 | K82: 0.74 | M82: 42 | N82: 0.74 | P82: 78 | Q82: 1.00 | S82: 189 | T82: 1.42 | V82: 149 | W82: 1.65 | Y82: 57 | Z82: 0.81 | AB82: 67 | AC82: 0.84 | AE82: 57 | AF82: 0.93 | AH82: 36 | AI82: 1.27 | AK82: 62 | AL82: 0.93 | AN82: 71 | AO82: 0.91
B83: 24세 | C83: 계 | D83: 2,283 | E83: 1.34 | F83: 134.39 | G83: 228 | H83: 1.63 | I83: 159.09 | J83: 65 | K83: 0.99 | L83: 160.00 | M83: 126 | N83: 1.09 | O83: 168.09 | P83: 193 | Q83: 1.24 | R83: 144.30 | S83: 382 | T83: 1.45 | U83: 117.05 | V83: 278 | W83: 1.48 | X83: 118.90 | Y83: 186 | Z83: 1.28 | AA83: 141.56 | AB83: 182 | AC83: 1.12 | AD83: 127.50 | AE83: 199 | AF83: 1.51 | AG83: 139.76 | AH83: 106 | AI83: 1.71 | AJ83: 135.56 | AK83: 145 | AL83: 1.15 | AM83: 116.42 | AN83: 193 | AO83: 1.27 | AP83: 141.25
C84: 남 | D84: 1,309 | E84: 1.51 | G84: 140 | H84: 1.91 | J84: 40 | K84: 1.16 | M84: 79 | N84: 1.34 | P84: 114 | Q84: 1.48 | S84: 206 | T84: 1.58 | V84: 151 | W84: 1.54 | Y84: 109 | Z84: 1.45 | AB84: 102 | AC84: 1.23 | AE84: 116 | AF84: 1.64 | AH84: 61 | AI84: 1.81 | AK84: 78 | AL84: 1.33 | AN84: 113 | AO84: 1.53
C85: 여 | D85: 974 | E85: 1.16 | G85: 88 | H85: 1.33 | J85: 25 | K85: 0.80 | M85: 47 | N85: 0.83 | P85: 79 | Q85: 1.01 | S85: 176 | T85: 1.32 | V85: 127 | W85: 1.41 | Y85: 77 | Z85: 1.09 | AB85: 80 | AC85: 1.01 | AE85: 83 | AF85: 1.36 | AH85: 45 | AI85: 1.59 | AK85: 67 | AL85: 1.00 | AN85: 80 | AO85: 1.02
B86: 25세 | C86: 계 | D86: 2,278 | E86: 1.33 | F86: 125.54 | G86: 224 | H86: 1.60 | I86: 107.41 | J86: 65 | K86: 0.99 | L86: 91.18 | M86: 122 | N86: 1.06 | O86: 121.82 | P86: 203 | Q86: 1.31 | R86: 123.08 | S86: 353 | T86: 1.34 | U86: 111.38 | V86: 290 | W86: 1.54 | X86: 130.16 | Y86: 171 | Z86: 1.17 | AA86: 122.08 | AB86: 176 | AC86: 1.08 | AD86: 131.58 | AE86: 205 | AF86: 1.55 | AG86: 159.49 | AH86: 108 | AI86: 1.74 | AJ86: 116.00 | AK86: 158 | AL86: 1.26 | AM86: 122.54 | AN86: 203 | AO86: 1.33 | AP86: 167.11
C87: 남 | D87: 1,268 | E87: 1.46 | G87: 116 | H87: 1.58 | J87: 31 | K87: 0.90 | M87: 67 | N87: 1.13 | P87: 112 | Q87: 1.45 | S87: 186 | T87: 1.42 | V87: 164 | W87: 1.67 | Y87: 94 | Z87: 1.25 | AB87: 100 | AC87: 1.20 | AE87: 126 | AF87: 1.78 | AH87: 58 | AI87: 1.72 | AK87: 87 | AL87: 1.48 | AN87: 127 | AO87: 1.72
C88: 여 | D88: 1,010 | E88: 1.20 | G88: 108 | H88: 1.63 | J88: 34 | K88: 1.09 | M88: 55 | N88: 0.97 | P88: 91 | Q88: 1.16 | S88: 167 | T88: 1.26 | V88: 126 | W88: 1.40 | Y88: 77 | Z88: 1.09 | AB88: 76 | AC88: 0.96 | AE88: 79 | AF88: 1.29 | AH88: 50 | AI88: 1.76 | AK88: 71 | AL88: 1.06 | AN88: 76 | AO88: 0.97
B89: 26세 | C89: 계 | D89: 2,341 | E89: 1.37 | F89: 117.77 | G89: 207 | H89: 1.48 | I89: 127.47 | J89: 81 | K89: 1.24 | L89: 84.09 | M89: 132 | N89: 1.14 | O89: 106.25 | P89: 213 | Q89: 1.37 | R89: 100.94 | S89: 374 | T89: 1.42 | U89: 116.18 | V89: 304 | W89: 1.61 | X89: 121.90 | Y89: 194 | Z89: 1.33 | AA89: 128.24 | AB89: 178 | AC89: 1.09 | AD89: 161.76 | AE89: 213 | AF89: 1.61 | AG89: 126.60 | AH89: 110 | AI89: 1.77 | AJ89: 144.44 | AK89: 157 | AL89: 1.25 | AM89: 98.73 | AN89: 178 | AO89: 1.17 | AP89: 100.00
C90: 남 | D90: 1,266 | E90: 1.46 | G90: 116 | H90: 1.58 | J90: 37 | K90: 1.08 | M90: 68 | N90: 1.15 | P90: 107 | Q90: 1.39 | S90: 201 | T90: 1.54 | V90: 167 | W90: 1.70 | Y90: 109 | Z90: 1.45 | AB90: 110 | AC90: 1.32 | AE90: 119 | AF90: 1.68 | AH90: 65 | AI90: 1.93 | AK90: 78 | AL90: 1.33 | AN90: 89 | AO90: 1.20
C91: 여 | D91: 1,075 | E91: 1.28 | G91: 91 | H91: 1.37 | J91: 44 | K91: 1.42 | M91: 64 | N91: 1.13 | P91: 106 | Q91: 1.36 | S91: 173 | T91: 1.30 | V91: 137 | W91: 1.52 | Y91: 85 | Z91: 1.21 | AB91: 68 | AC91: 0.86 | AE91: 94 | AF91: 1.54 | AH91: 45 | AI91: 1.59 | AK91: 79 | AL91: 1.18 | AN91: 89 | AO91: 1.14
B92: 27세 | C92: 계 | D92: 2,370 | E92: 1.39 | F92: 124.43 | G92: 196 | H92: 1.40 | I92: 122.73 | J92: 87 | K92: 1.33 | L92: 107.14 | M92: 128 | N92: 1.11 | O92: 100.00 | P92: 221 | Q92: 1.42 | R92: 108.49 | S92: 384 | T92: 1.46 | U92: 132.73 | V92: 321 | W92: 1.70 | X92: 143.18 | Y92: 203 | Z92: 1.39 | AA92: 144.58 | AB92: 207 | AC92: 1.27 | AD92: 127.47 | AE92: 192 | AF92: 1.45 | AG92: 134.15 | AH92: 96 | AI92: 1.55 | AJ92: 128.57 | AK92: 160 | AL92: 1.27 | AM92: 97.53 | AN92: 175 | AO92: 1.15 | AP92: 118.75
C93: 남 | D93: 1,314 | E93: 1.51 | G93: 108 | H93: 1.47 | J93: 45 | K93: 1.31 | M93: 64 | N93: 1.08 | P93: 115 | Q93: 1.49 | S93: 219 | T93: 1.68 | V93: 189 | W93: 1.92 | Y93: 120 | Z93: 1.60 | AB93: 116 | AC93: 1.40 | AE93: 110 | AF93: 1.55 | AH93: 54 | AI93: 1.60 | AK93: 79 | AL93: 1.34 | AN93: 95 | AO93: 1.28
C94: 여 | D94: 1,056 | E94: 1.26 | G94: 88 | H94: 1.33 | J94: 42 | K94: 1.35 | M94: 64 | N94: 1.13 | P94: 106 | Q94: 1.36 | S94: 165 | T94: 1.24 | V94: 132 | W94: 1.46 | Y94: 83 | Z94: 1.18 | AB94: 91 | AC94: 1.14 | AE94: 82 | AF94: 1.34 | AH94: 42 | AI94: 1.48 | AK94: 81 | AL94: 1.21 | AN94: 80 | AO94: 1.02
B95: 28세 | C95: 계 | D95: 2,285 | E95: 1.34 | F95: 131.04 | G95: 185 | H95: 1.32 | I95: 193.65 | J95: 79 | K95: 1.21 | L95: 192.59 | M95: 127 | N95: 1.10 | O95: 126.79 | P95: 178 | Q95: 1.15 | R95: 106.98 | S95: 345 | T95: 1.31 | U95: 122.58 | V95: 316 | W95: 1.68 | X95: 130.66 | Y95: 201 | Z95: 1.38 | AA95: 131.03 | AB95: 207 | AC95: 1.27 | AD95: 113.40 | AE95: 235 | AF95: 1.78 | AG95: 144.79 | AH95: 106 | AI95: 1.71 | AJ95: 120.83 | AK95: 152 | AL95: 1.21 | AM95: 130.30 | AN95: 154 | AO95: 1.01 | AP95: 116.90
C96: 남 | D96: 1,296 | E96: 1.49 | G96: 122 | H96: 1.66 | J96: 52 | K96: 1.51 | M96: 71 | N96: 1.20 | P96: 92 | Q96: 1.19 | S96: 190 | T96: 1.46 | V96: 179 | W96: 1.82 | Y96: 114 | Z96: 1.52 | AB96: 110 | AC96: 1.32 | AE96: 139 | AF96: 1.96 | AH96: 58 | AI96: 1.72 | AK96: 86 | AL96: 1.46 | AN96: 83 | AO96: 1.12
C97: 여 | D97: 989 | E97: 1.18 | G97: 63 | H97: 0.95 | J97: 27 | K97: 0.87 | M97: 56 | N97: 0.99 | P97: 86 | Q97: 1.10 | S97: 155 | T97: 1.17 | V97: 137 | W97: 1.52 | Y97: 87 | Z97: 1.24 | AB97: 97 | AC97: 1.22 | AE97: 96 | AF97: 1.57 | AH97: 48 | AI97: 1.69 | AK97: 66 | AL97: 0.99 | AN97: 71 | AO97: 0.91
B98: 29세 | C98: 계 | D98: 2,254 | E98: 1.32 | F98: 119.90 | G98: 185 | H98: 1.32 | I98: 110.23 | J98: 63 | K98: 0.96 | L98: 142.31 | M98: 134 | N98: 1.16 | O98: 139.29 | P98: 177 | Q98: 1.14 | R98: 160.29 | S98: 298 | T98: 1.13 | U98: 91.03 | V98: 277 | W98: 1.47 | X98: 140.87 | Y98: 203 | Z98: 1.39 | AA98: 103.00 | AB98: 238 | AC98: 1.46 | AD98: 88.89 | AE98: 234 | AF98: 1.77 | AG98: 172.09 | AH98: 122 | AI98: 1.97 | AJ98: 154.17 | AK98: 161 | AL98: 1.28 | AM98: 98.77 | AN98: 162 | AO98: 1.07 | AP98: 116.00
C99: 남 | D99: 1,229 | E99: 1.41 | G99: 97 | H99: 1.32 | J99: 37 | K99: 1.08 | M99: 78 | N99: 1.32 | P99: 109 | Q99: 1.41 | S99: 142 | T99: 1.09 | V99: 162 | W99: 1.65 | Y99: 103 | Z99: 1.37 | AB99: 112 | AC99: 1.35 | AE99: 148 | AF99: 2.09 | AH99: 74 | AI99: 2.20 | AK99: 80 | AL99: 1.36 | AN99: 87 | AO99: 1.18
C100: 여 | D100: 1,025 | E100: 1.22 | G100: 88 | H100: 1.33 | J100: 26 | K100: 0.84 | M100: 56 | N100: 0.99 | P100: 68 | Q100: 0.87 | S100: 156 | T100: 1.17 | V100: 115 | W100: 1.28 | Y100: 100 | Z100: 1.42 | AB100: 126 | AC100: 1.58 | AE100: 86 | AF100: 1.41 | AH100: 48 | AI100: 1.69 | AK100: 81 | AL100: 1.21 | AN100: 75 | AO100: 0.96
B101: 30세 | C101: 계 | D101: 2,260 | E101: 1.32 | F101: 136.65 | G101: 168 | H101: 1.20 | I101: 175.41 | J101: 74 | K101: 1.13 | L101: 164.29 | M101: 156 | N101: 1.35 | O101: 140.00 | P101: 189 | Q101: 1.22 | R101: 148.68 | S101: 282 | T101: 1.07 | U101: 125.60 | V101: 276 | W101: 1.46 | X101: 157.94 | Y101: 238 | Z101: 1.63 | AA101: 126.67 | AB101: 217 | AC101: 1.33 | AD101: 106.67 | AE101: 220 | AF101: 1.67 | AG101: 178.48 | AH101: 99 | AI101: 1.60 | AJ101: 135.71 | AK101: 172 | AL101: 1.37 | AM101: 95.45 | AN101: 169 | AO101: 1.11 | AP101: 128.38
C102: 남 | D102: 1,305 | E102: 1.50 | G102: 107 | H102: 1.46 | J102: 46 | K102: 1.34 | M102: 91 | N102: 1.54 | P102: 113 | Q102: 1.46 | S102: 157 | T102: 1.20 | V102: 169 | W102: 1.72 | Y102: 133 | Z102: 1.77 | AB102: 112 | AC102: 1.35 | AE102: 141 | AF102: 1.99 | AH102: 57 | AI102: 1.69 | AK102: 84 | AL102: 1.43 | AN102: 95 | AO102: 1.28
C103: 여 | D103: 955 | E103: 1.14 | G103: 61 | H103: 0.92 | J103: 28 | K103: 0.90 | M103: 65 | N103: 1.15 | P103: 76 | Q103: 0.97 | S103: 125 | T103: 0.94 | V103: 107 | W103: 1.19 | Y103: 105 | Z103: 1.49 | AB103: 105 | AC103: 1.32 | AE103: 79 | AF103: 1.29 | AH103: 42 | AI103: 1.48 | AK103: 88 | AL103: 1.32 | AN103: 74 | AO103: 0.95
B104: 31세 | C104: 계 | D104: 2,228 | E104: 1.30 | F104: 128.51 | G104: 159 | H104: 1.14 | I104: 156.45 | J104: 93 | K104: 1.42 | L104: 132.50 | M104: 121 | N104: 1.05 | O104: 188.10 | P104: 174 | Q104: 1.12 | R104: 138.36 | S104: 275 | T104: 1.04 | U104: 111.54 | V104: 293 | W104: 1.56 | X104: 146.22 | Y104: 227 | Z104: 1.56 | AA104: 134.02 | AB104: 246 | AC104: 1.51 | AD104: 86.36 | AE104: 215 | AF104: 1.63 | AG104: 165.43 | AH104: 98 | AI104: 1.58 | AJ104: 157.89 | AK104: 173 | AL104: 1.38 | AM104: 86.02 | AN104: 154 | AO104: 1.01 | AP104: 126.47
C105: 남 | D105: 1,253 | E105: 1.44 | G105: 97 | H105: 1.32 | J105: 53 | K105: 1.54 | M105: 79 | N105: 1.34 | P105: 101 | Q105: 1.31 | S105: 145 | T105: 1.11 | V105: 174 | W105: 1.77 | Y105: 130 | Z105: 1.73 | AB105: 114 | AC105: 1.37 | AE105: 134 | AF105: 1.89 | AH105: 60 | AI105: 1.78 | AK105: 80 | AL105: 1.36 | AN105: 86 | AO105: 1.16
C106: 여 | D106: 975 | E106: 1.16 | G106: 62 | H106: 0.93 | J106: 40 | K106: 1.29 | M106: 42 | N106: 0.74 | P106: 73 | Q106: 0.93 | S106: 130 | T106: 0.98 | V106: 119 | W106: 1.32 | Y106: 97 | Z106: 1.38 | AB106: 132 | AC106: 1.66 | AE106: 81 | AF106: 1.33 | AH106: 38 | AI106: 1.34 | AK106: 93 | AL106: 1.39 | AN106: 68 | AO106: 0.87
B107: 32세 | C107: 계 | D107: 2,022 | E107: 1.18 | F107: 133.22 | G107: 138 | H107: 0.99 | I107: 193.62 | J107: 73 | K107: 1.12 | L107: 170.37 | M107: 112 | N107: 0.97 | O107: 138.30 | P107: 158 | Q107: 1.02 | R107: 154.84 | S107: 250 | T107: 0.95 | U107: 100.00 | V107: 225 | W107: 1.19 | X107: 139.36 | Y107: 236 | Z107: 1.62 | AA107: 114.55 | AB107: 264 | AC107: 1.62 | AD107: 121.85 | AE107: 169 | AF107: 1.28 | AG107: 181.67 | AH107: 99 | AI107: 1.60 | AJ107: 253.57 | AK107: 158 | AL107: 1.26 | AM107: 90.36 | AN107: 140 | AO107: 0.92 | AP107: 115.38
C108: 남 | D108: 1,155 | E108: 1.33 | G108: 91 | H108: 1.24 | J108: 46 | K108: 1.34 | M108: 65 | N108: 1.10 | P108: 96 | Q108: 1.24 | S108: 125 | T108: 0.96 | V108: 131 | W108: 1.33 | Y108: 126 | Z108: 1.68 | AB108: 145 | AC108: 1.75 | AE108: 109 | AF108: 1.54 | AH108: 71 | AI108: 2.11 | AK108: 75 | AL108: 1.28 | AN108: 75 | AO108: 1.01
C109: 여 | D109: 867 | E109: 1.03 | G109: 47 | H109: 0.71 | J109: 27 | K109: 0.87 | M109: 47 | N109: 0.83 | P109: 62 | Q109: 0.79 | S109: 125 | T109: 0.94 | V109: 94 | W109: 1.04 | Y109: 110 | Z109: 1.56 | AB109: 119 | AC109: 1.50 | AE109: 60 | AF109: 0.98 | AH109: 28 | AI109: 0.99 | AK109: 83 | AL109: 1.24 | AN109: 65 | AO109: 0.83
B110: 33세 | C110: 계 | D110: 1,965 | E110: 1.15 | F110: 135.33 | G110: 137 | H110: 0.98 | I110: 185.42 | J110: 83 | K110: 1.27 | L110: 207.41 | M110: 118 | N110: 1.02 | O110: 180.95 | P110: 134 | Q110: 0.86 | R110: 135.09 | S110: 224 | T110: 0.85 | U110: 130.93 | V110: 212 | W110: 1.13 | X110: 161.73 | Y110: 238 | Z110: 1.63 | AA110: 124.53 | AB110: 242 | AC110: 1.49 | AD110: 87.60 | AE110: 173 | AF110: 1.31 | AG110: 170.31 | AH110: 111 | AI110: 1.79 | AJ110: 177.50 | AK110: 155 | AL110: 1.23 | AM110: 109.46 | AN110: 138 | AO110: 0.91 | AP110: 97.14
C111: 남 | D111: 1,130 | E111: 1.30 | G111: 89 | H111: 1.21 | J111: 56 | K111: 1.63 | M111: 76 | N111: 1.29 | P111: 77 | Q111: 1.00 | S111: 127 | T111: 0.97 | V111: 131 | W111: 1.33 | Y111: 132 | Z111: 1.75 | AB111: 113 | AC111: 1.36 | AE111: 109 | AF111: 1.54 | AH111: 71 | AI111: 2.11 | AK111: 81 | AL111: 1.38 | AN111: 68 | AO111: 0.92
C112: 여 | D112: 835 | E112: 0.99 | G112: 48 | H112: 0.72 | J112: 27 | K112: 0.87 | M112: 42 | N112: 0.74 | P112: 57 | Q112: 0.73 | S112: 97 | T112: 0.73 | V112: 81 | W112: 0.90 | Y112: 106 | Z112: 1.51 | AB112: 129 | AC112: 1.62 | AE112: 64 | AF112: 1.05 | AH112: 40 | AI112: 1.41 | AK112: 74 | AL112: 1.11 | AN112: 70 | AO112: 0.90
B113: 34세 | C113: 계 | D113: 1,832 | E113: 1.07 | F113: 132.19 | G113: 133 | H113: 0.95 | I113: 133.33 | J113: 68 | K113: 1.04 | L113: 112.50 | M113: 94 | N113: 0.81 | O113: 168.57 | P113: 141 | Q113: 0.91 | R113: 110.45 | S113: 208 | T113: 0.79 | U113: 118.95 | V113: 191 | W113: 1.01 | X113: 148.05 | Y113: 210 | Z113: 1.44 | AA113: 144.19 | AB113: 226 | AC113: 1.39 | AD113: 119.42 | AE113: 159 | AF113: 1.20 | AG113: 169.49 | AH113: 104 | AI113: 1.68 | AJ113: 173.68 | AK113: 160 | AL113: 1.27 | AM113: 116.22 | AN113: 138 | AO113: 0.91 | AP113: 109.09
C114: 남 | D114: 1,043 | E114: 1.20 | G114: 76 | H114: 1.03 | J114: 36 | K114: 1.05 | M114: 59 | N114: 1.00 | P114: 74 | Q114: 0.96 | S114: 113 | T114: 0.87 | V114: 114 | W114: 1.16 | Y114: 124 | Z114: 1.65 | AB114: 123 | AC114: 1.48 | AE114: 100 | AF114: 1.41 | AH114: 66 | AI114: 1.96 | AK114: 86 | AL114: 1.46 | AN114: 72 | AO114: 0.97
C115: 여 | D115: 789 | E115: 0.94 | G115: 57 | H115: 0.86 | J115: 32 | K115: 1.03 | M115: 35 | N115: 0.62 | P115: 67 | Q115: 0.86 | S115: 95 | T115: 0.71 | V115: 77 | W115: 0.85 | Y115: 86 | Z115: 1.22 | AB115: 103 | AC115: 1.30 | AE115: 59 | AF115: 0.97 | AH115: 38 | AI115: 1.34 | AK115: 74 | AL115: 1.11 | AN115: 66 | AO115: 0.85
B116: 35세 | C116: 계 | D116: 1,812 | E116: 1.06 | F116: 124.26 | G116: 130 | H116: 0.93 | I116: 103.13 | J116: 70 | K116: 1.07 | L116: 125.81 | M116: 104 | N116: 0.90 | O116: 92.59 | P116: 131 | Q116: 0.84 | R116: 118.33 | S116: 241 | T116: 0.91 | U116: 102.52 | V116: 184 | W116: 0.98 | X116: 142.11 | Y116: 186 | Z116: 1.28 | AA116: 204.92 | AB116: 271 | AC116: 1.67 | AD116: 105.30 | AE116: 142 | AF116: 1.08 | AG116: 158.18 | AH116: 78 | AI116: 1.26 | AJ116: 178.57 | AK116: 154 | AL116: 1.23 | AM116: 126.47 | AN116: 121 | AO116: 0.80 | AP116: 101.67
C117: 남 | D117: 1,004 | E117: 1.16 | G117: 66 | H117: 0.90 | J117: 39 | K117: 1.14 | M117: 50 | N117: 0.85 | P117: 71 | Q117: 0.92 | S117: 122 | T117: 0.93 | V117: 108 | W117: 1.10 | Y117: 125 | Z117: 1.66 | AB117: 139 | AC117: 1.67 | AE117: 87 | AF117: 1.23 | AH117: 50 | AI117: 1.48 | AK117: 86 | AL117: 1.46 | AN117: 61 | AO117: 0.82
C118: 여 | D118: 808 | E118: 0.96 | G118: 64 | H118: 0.96 | J118: 31 | K118: 1.00 | M118: 54 | N118: 0.96 | P118: 60 | Q118: 0.77 | S118: 119 | T118: 0.89 | V118: 76 | W118: 0.84 | Y118: 61 | Z118: 0.87 | AB118: 132 | AC118: 1.66 | AE118: 55 | AF118: 0.90 | AH118: 28 | AI118: 0.99 | AK118: 68 | AL118: 1.02 | AN118: 60 | AO118: 0.77
B119: 36세 | C119: 계 | D119: 1,830 | E119: 1.07 | F119: 127.33 | G119: 139 | H119: 0.99 | I119: 135.59 | J119: 52 | K119: 0.79 | L119: 126.09 | M119: 110 | N119: 0.95 | O119: 107.55 | P119: 130 | Q119: 0.84 | R119: 150.00 | S119: 249 | T119: 0.94 | U119: 118.42 | V119: 179 | W119: 0.95 | X119: 163.24 | Y119: 180 | Z119: 1.24 | AA119: 140.00 | AB119: 282 | AC119: 1.73 | AD119: 112.03 | AE119: 154 | AF119: 1.17 | AG119: 123.19 | AH119: 76 | AI119: 1.23 | AJ119: 192.31 | AK119: 152 | AL119: 1.21 | AM119: 111.11 | AN119: 127 | AO119: 0.83 | AP119: 108.20
C120: 남 | D120: 1,025 | E120: 1.18 | G120: 80 | H120: 1.09 | J120: 29 | K120: 0.84 | M120: 57 | N120: 0.96 | P120: 78 | Q120: 1.01 | S120: 135 | T120: 1.03 | V120: 111 | W120: 1.13 | Y120: 105 | Z120: 1.40 | AB120: 149 | AC120: 1.79 | AE120: 85 | AF120: 1.20 | AH120: 50 | AI120: 1.48 | AK120: 80 | AL120: 1.36 | AN120: 66 | AO120: 0.89
C121: 여 | D121: 805 | E121: 0.96 | G121: 59 | H121: 0.89 | J121: 23 | K121: 0.74 | M121: 53 | N121: 0.94 | P121: 52 | Q121: 0.67 | S121: 114 | T121: 0.86 | V121: 68 | W121: 0.75 | Y121: 75 | Z121: 1.07 | AB121: 133 | AC121: 1.67 | AE121: 69 | AF121: 1.13 | AH121: 26 | AI121: 0.92 | AK121: 72 | AL121: 1.08 | AN121: 61 | AO121: 0.78
B122: 37세 | C122: 계 | D122: 1,834 | E122: 1.07 | F122: 111.29 | G122: 143 | H122: 1.02 | I122: 113.43 | J122: 70 | K122: 1.07 | L122: 70.73 | M122: 92 | N122: 0.80 | O122: 178.79 | P122: 137 | Q122: 0.88 | R122: 69.14 | S122: 231 | T122: 0.88 | U122: 104.42 | V122: 216 | W122: 1.15 | X122: 127.37 | Y122: 167 | Z122: 1.15 | AA122: 101.20 | AB122: 291 | AC122: 1.79 | AD122: 96.62 | AE122: 154 | AF122: 1.17 | AG122: 133.33 | AH122: 79 | AI122: 1.27 | AJ122: 125.71 | AK122: 143 | AL122: 1.14 | AM122: 110.29 | AN122: 111 | AO122: 0.73 | AP122: 192.11
C123: 남 | D123: 966 | E123: 1.11 | G123: 76 | H123: 1.03 | J123: 29 | K123: 0.84 | M123: 59 | N123: 1.00 | P123: 56 | Q123: 0.73 | S123: 118 | T123: 0.90 | V123: 121 | W123: 1.23 | Y123: 84 | Z123: 1.12 | AB123: 143 | AC123: 1.72 | AE123: 88 | AF123: 1.24 | AH123: 44 | AI123: 1.31 | AK123: 75 | AL123: 1.28 | AN123: 73 | AO123: 0.99
C124: 여 | D124: 868 | E124: 1.03 | G124: 67 | H124: 1.01 | J124: 41 | K124: 1.32 | M124: 33 | N124: 0.58 | P124: 81 | Q124: 1.04 | S124: 113 | T124: 0.85 | V124: 95 | W124: 1.05 | Y124: 83 | Z124: 1.18 | AB124: 148 | AC124: 1.86 | AE124: 66 | AF124: 1.08 | AH124: 35 | AI124: 1.24 | AK124: 68 | AL124: 1.02 | AN124: 38 | AO124: 0.49
B125: 38세 | C125: 계 | D125: 1,761 | E125: 1.03 | F125: 119.30 | G125: 115 | H125: 0.82 | I125: 161.36 | J125: 65 | K125: 0.99 | L125: 103.13 | M125: 105 | N125: 0.91 | O125: 98.11 | P125: 117 | Q125: 0.75 | R125: 165.91 | S125: 247 | T125: 0.94 | U125: 111.11 | V125: 155 | W125: 0.82 | X125: 112.33 | Y125: 181 | Z125: 1.24 | AA125: 118.07 | AB125: 281 | AC125: 1.73 | AD125: 108.15 | AE125: 145 | AF125: 1.10 | AG125: 145.76 | AH125: 83 | AI125: 1.34 | AJ125: 196.43 | AK125: 141 | AL125: 1.12 | AM125: 95.83 | AN125: 126 | AO125: 0.83 | AP125: 100.00
C126: 남 | D126: 958 | E126: 1.10 | G126: 71 | H126: 0.97 | J126: 33 | K126: 0.96 | M126: 52 | N126: 0.88 | P126: 73 | Q126: 0.95 | S126: 130 | T126: 1.00 | V126: 82 | W126: 0.83 | Y126: 98 | Z126: 1.30 | AB126: 146 | AC126: 1.76 | AE126: 86 | AF126: 1.21 | AH126: 55 | AI126: 1.63 | AK126: 69 | AL126: 1.17 | AN126: 63 | AO126: 0.85
C127: 여 | D127: 803 | E127: 0.96 | G127: 44 | H127: 0.66 | J127: 32 | K127: 1.03 | M127: 53 | N127: 0.94 | P127: 44 | Q127: 0.56 | S127: 117 | T127: 0.88 | V127: 73 | W127: 0.81 | Y127: 83 | Z127: 1.18 | AB127: 135 | AC127: 1.70 | AE127: 59 | AF127: 0.97 | AH127: 28 | AI127: 0.99 | AK127: 72 | AL127: 1.08 | AN127: 63 | AO127: 0.81
B128: 39세 | C128: 계 | D128: 1,903 | E128: 1.11 | F128: 115.76 | G128: 117 | H128: 0.84 | I128: 108.93 | J128: 69 | K128: 1.05 | L128: 97.14 | M128: 103 | N128: 0.89 | O128: 110.20 | P128: 142 | Q128: 0.91 | R128: 108.82 | S128: 277 | T128: 1.05 | U128: 97.86 | V128: 185 | W128: 0.98 | X128: 134.18 | Y128: 188 | Z128: 1.29 | AA128: 144.16 | AB128: 301 | AC128: 1.85 | AD128: 96.73 | AE128: 132 | AF128: 1.00 | AG128: 140.00 | AH128: 107 | AI128: 1.73 | AJ128: 197.22 | AK128: 142 | AL128: 1.13 | AM128: 132.79 | AN128: 140 | AO128: 0.92 | AP128: 91.78
C129: 남 | D129: 1,021 | E129: 1.18 | G129: 61 | H129: 0.83 | J129: 34 | K129: 0.99 | M129: 54 | N129: 0.91 | P129: 74 | Q129: 0.96 | S129: 137 | T129: 1.05 | V129: 106 | W129: 1.08 | Y129: 111 | Z129: 1.48 | AB129: 148 | AC129: 1.78 | AE129: 77 | AF129: 1.09 | AH129: 71 | AI129: 2.11 | AK129: 81 | AL129: 1.38 | AN129: 67 | AO129: 0.90
C130: 여 | D130: 882 | E130: 1.05 | G130: 56 | H130: 0.84 | J130: 35 | K130: 1.13 | M130: 49 | N130: 0.87 | P130: 68 | Q130: 0.87 | S130: 140 | T130: 1.05 | V130: 79 | W130: 0.88 | Y130: 77 | Z130: 1.09 | AB130: 153 | AC130: 1.92 | AE130: 55 | AF130: 0.90 | AH130: 36 | AI130: 1.27 | AK130: 61 | AL130: 0.91 | AN130: 73 | AO130: 0.94
B131: 40세 | C131: 계 | D131: 2,080 | E131: 1.22 | F131: 118.95 | G131: 129 | H131: 0.92 | I131: 152.94 | J131: 82 | K131: 1.25 | L131: 121.62 | M131: 119 | N131: 1.03 | O131: 138.00 | P131: 165 | Q131: 1.06 | R131: 114.29 | S131: 328 | T131: 1.24 | U131: 89.60 | V131: 239 | W131: 1.27 | X131: 119.27 | Y131: 178 | Z131: 1.22 | AA131: 157.97 | AB131: 325 | AC131: 2.00 | AD131: 116.67 | AE131: 130 | AF131: 0.98 | AG131: 128.07 | AH131: 80 | AI131: 1.29 | AJ131: 142.42 | AK131: 143 | AL131: 1.14 | AM131: 113.43 | AN131: 162 | AO131: 1.07 | AP131: 110.39
C132: 남 | D132: 1,130 | E132: 1.30 | G132: 78 | H132: 1.06 | J132: 45 | K132: 1.31 | M132: 69 | N132: 1.17 | P132: 88 | Q132: 1.14 | S132: 155 | T132: 1.19 | V132: 130 | W132: 1.32 | Y132: 109 | Z132: 1.45 | AB132: 175 | AC132: 2.11 | AE132: 73 | AF132: 1.03 | AH132: 47 | AI132: 1.40 | AK132: 76 | AL132: 1.29 | AN132: 85 | AO132: 1.15
C133: 여 | D133: 950 | E133: 1.13 | G133: 51 | H133: 0.77 | J133: 37 | K133: 1.19 | M133: 50 | N133: 0.89 | P133: 77 | Q133: 0.99 | S133: 173 | T133: 1.30 | V133: 109 | W133: 1.21 | Y133: 69 | Z133: 0.98 | AB133: 150 | AC133: 1.89 | AE133: 57 | AF133: 0.93 | AH133: 33 | AI133: 1.16 | AK133: 67 | AL133: 1.00 | AN133: 77 | AO133: 0.99
B134: 41세 | C134: 계 | D134: 2,356 | E134: 1.38 | F134: 111.68 | G134: 159 | H134: 1.14 | I134: 156.45 | J134: 100 | K134: 1.53 | L134: 85.19 | M134: 141 | N134: 1.22 | O134: 113.64 | P134: 193 | Q134: 1.24 | R134: 116.85 | S134: 369 | T134: 1.40 | U134: 91.19 | V134: 239 | W134: 1.27 | X134: 111.50 | Y134: 212 | Z134: 1.46 | AA134: 105.83 | AB134: 336 | AC134: 2.07 | AD134: 106.13 | AE134: 170 | AF134: 1.29 | AG134: 146.38 | AH134: 94 | AI134: 1.52 | AJ134: 213.33 | AK134: 159 | AL134: 1.27 | AM134: 103.85 | AN134: 184 | AO134: 1.21 | AP134: 97.85
C135: 남 | D135: 1,243 | E135: 1.43 | G135: 97 | H135: 1.32 | J135: 46 | K135: 1.34 | M135: 75 | N135: 1.27 | P135: 104 | Q135: 1.35 | S135: 176 | T135: 1.35 | V135: 126 | W135: 1.28 | Y135: 109 | Z135: 1.45 | AB135: 173 | AC135: 2.08 | AE135: 101 | AF135: 1.42 | AH135: 64 | AI135: 1.90 | AK135: 81 | AL135: 1.38 | AN135: 91 | AO135: 1.23
C136: 여 | D136: 1,113 | E136: 1.33 | G136: 62 | H136: 0.93 | J136: 54 | K136: 1.74 | M136: 66 | N136: 1.17 | P136: 89 | Q136: 1.14 | S136: 193 | T136: 1.45 | V136: 113 | W136: 1.25 | Y136: 103 | Z136: 1.46 | AB136: 163 | AC136: 2.05 | AE136: 69 | AF136: 1.13 | AH136: 30 | AI136: 1.06 | AK136: 78 | AL136: 1.17 | AN136: 93 | AO136: 1.19
B137: 42세 | C137: 계 | D137: 2,352 | E137: 1.38 | F137: 114.01 | G137: 151 | H137: 1.08 | I137: 143.55 | J137: 102 | K137: 1.56 | L137: 229.03 | M137: 149 | N137: 1.29 | O137: 86.25 | P137: 201 | Q137: 1.29 | R137: 91.43 | S137: 390 | T137: 1.48 | U137: 86.60 | V137: 256 | W137: 1.36 | X137: 156.00 | Y137: 176 | Z137: 1.21 | AA137: 128.57 | AB137: 303 | AC137: 1.86 | AD137: 131.30 | AE137: 178 | AF137: 1.35 | AG137: 111.90 | AH137: 118 | AI137: 1.90 | AJ137: 118.52 | AK137: 157 | AL137: 1.25 | AM137: 96.25 | AN137: 171 | AO137: 1.12 | AP137: 98.84
C138: 남 | D138: 1,253 | E138: 1.44 | G138: 89 | H138: 1.21 | J138: 71 | K138: 2.07 | M138: 69 | N138: 1.17 | P138: 96 | Q138: 1.24 | S138: 181 | T138: 1.39 | V138: 156 | W138: 1.59 | Y138: 99 | Z138: 1.32 | AB138: 172 | AC138: 2.07 | AE138: 94 | AF138: 1.33 | AH138: 64 | AI138: 1.90 | AK138: 77 | AL138: 1.31 | AN138: 85 | AO138: 1.15
C139: 여 | D139: 1,099 | E139: 1.31 | G139: 62 | H139: 0.93 | J139: 31 | K139: 1.00 | M139: 80 | N139: 1.42 | P139: 105 | Q139: 1.34 | S139: 209 | T139: 1.57 | V139: 100 | W139: 1.11 | Y139: 77 | Z139: 1.09 | AB139: 131 | AC139: 1.65 | AE139: 84 | AF139: 1.37 | AH139: 54 | AI139: 1.91 | AK139: 80 | AL139: 1.20 | AN139: 86 | AO139: 1.10
B140: 43세 | C140: 계 | D140: 2,337 | E140: 1.37 | F140: 107.36 | G140: 172 | H140: 1.23 | I140: 109.76 | J140: 98 | K140: 1.50 | L140: 104.17 | M140: 137 | N140: 1.19 | O140: 104.48 | P140: 218 | Q140: 1.40 | R140: 105.66 | S140: 368 | T140: 1.40 | U140: 92.67 | V140: 233 | W140: 1.24 | X140: 128.43 | Y140: 171 | Z140: 1.17 | AA140: 125.00 | AB140: 333 | AC140: 2.05 | AD140: 113.46 | AE140: 167 | AF140: 1.26 | AG140: 108.75 | AH140: 115 | AI140: 1.85 | AJ140: 116.98 | AK140: 167 | AL140: 1.33 | AM140: 114.10 | AN140: 158 | AO140: 1.04 | AP140: 79.55
C141: 남 | D141: 1,210 | E141: 1.39 | G141: 90 | H141: 1.22 | J141: 50 | K141: 1.46 | M141: 70 | N141: 1.18 | P141: 112 | Q141: 1.45 | S141: 177 | T141: 1.36 | V141: 131 | W141: 1.33 | Y141: 95 | Z141: 1.26 | AB141: 177 | AC141: 2.13 | AE141: 87 | AF141: 1.23 | AH141: 62 | AI141: 1.84 | AK141: 89 | AL141: 1.51 | AN141: 70 | AO141: 0.95
C142: 여 | D142: 1,127 | E142: 1.34 | G142: 82 | H142: 1.24 | J142: 48 | K142: 1.54 | M142: 67 | N142: 1.19 | P142: 106 | Q142: 1.36 | S142: 191 | T142: 1.44 | V142: 102 | W142: 1.13 | Y142: 76 | Z142: 1.08 | AB142: 156 | AC142: 1.96 | AE142: 80 | AF142: 1.31 | AH142: 53 | AI142: 1.87 | AK142: 78 | AL142: 1.17 | AN142: 88 | AO142: 1.13
B143: 44세 | C143: 계 | D143: 2,300 | E143: 1.35 | F143: 109.66 | G143: 164 | H143: 1.17 | I143: 110.26 | J143: 84 | K143: 1.28 | L143: 115.38 | M143: 101 | N143: 0.87 | O143: 134.88 | P143: 218 | Q143: 1.40 | R143: 98.18 | S143: 406 | T143: 1.54 | U143: 85.39 | V143: 254 | W143: 1.35 | X143: 106.50 | Y143: 171 | Z143: 1.17 | AA143: 113.75 | AB143: 258 | AC143: 1.59 | AD143: 155.45 | AE143: 158 | AF143: 1.20 | AG143: 107.89 | AH143: 108 | AI143: 1.74 | AJ143: 145.45 | AK143: 166 | AL143: 1.32 | AM143: 107.50 | AN143: 212 | AO143: 1.39 | AP143: 103.85
C144: 남 | D144: 1,203 | E144: 1.39 | G144: 86 | H144: 1.17 | J144: 45 | K144: 1.31 | M144: 58 | N144: 0.98 | P144: 108 | Q144: 1.40 | S144: 187 | T144: 1.43 | V144: 131 | W144: 1.33 | Y144: 91 | Z144: 1.21 | AB144: 157 | AC144: 1.89 | AE144: 82 | AF144: 1.16 | AH144: 64 | AI144: 1.90 | AK144: 86 | AL144: 1.46 | AN144: 108 | AO144: 1.46
C145: 여 | D145: 1,097 | E145: 1.31 | G145: 78 | H145: 1.18 | J145: 39 | K145: 1.26 | M145: 43 | N145: 0.76 | P145: 110 | Q145: 1.41 | S145: 219 | T145: 1.65 | V145: 123 | W145: 1.36 | Y145: 80 | Z145: 1.14 | AB145: 101 | AC145: 1.27 | AE145: 76 | AF145: 1.24 | AH145: 44 | AI145: 1.55 | AK145: 80 | AL145: 1.20 | AN145: 104 | AO145: 1.33
B146: 45세 | C146: 계 | D146: 2,292 | E146: 1.34 | F146: 105.75 | G146: 153 | H146: 1.09 | I146: 121.74 | J146: 81 | K146: 1.24 | L146: 153.13 | M146: 141 | N146: 1.22 | O146: 120.31 | P146: 204 | Q146: 1.31 | R146: 100.00 | S146: 435 | T146: 1.65 | U146: 76.11 | V146: 275 | W146: 1.46 | X146: 116.54 | Y146: 193 | Z146: 1.33 | AA146: 101.04 | AB146: 244 | AC146: 1.50 | AD146: 119.82 | AE146: 178 | AF146: 1.35 | AG146: 111.90 | AH146: 100 | AI146: 1.61 | AJ146: 127.27 | AK146: 131 | AL146: 1.04 | AM146: 125.86 | AN146: 157 | AO146: 1.03 | AP146: 96.25
C147: 남 | D147: 1,178 | E147: 1.36 | G147: 84 | H147: 1.14 | J147: 49 | K147: 1.43 | M147: 77 | N147: 1.30 | P147: 102 | Q147: 1.32 | S147: 188 | T147: 1.44 | V147: 148 | W147: 1.51 | Y147: 97 | Z147: 1.29 | AB147: 133 | AC147: 1.60 | AE147: 94 | AF147: 1.33 | AH147: 56 | AI147: 1.66 | AK147: 73 | AL147: 1.24 | AN147: 77 | AO147: 1.04
C148: 여 | D148: 1,114 | E148: 1.33 | G148: 69 | H148: 1.04 | J148: 32 | K148: 1.03 | M148: 64 | N148: 1.13 | P148: 102 | Q148: 1.31 | S148: 247 | T148: 1.86 | V148: 127 | W148: 1.41 | Y148: 96 | Z148: 1.36 | AB148: 111 | AC148: 1.40 | AE148: 84 | AF148: 1.37 | AH148: 44 | AI148: 1.55 | AK148: 58 | AL148: 0.87 | AN148: 80 | AO148: 1.02
B149: 46세 | C149: 계 | D149: 2,349 | E149: 1.38 | F149: 104.26 | G149: 176 | H149: 1.26 | I149: 137.84 | J149: 84 | K149: 1.28 | L149: 110.00 | M149: 149 | N149: 1.29 | O149: 144.26 | P149: 205 | Q149: 1.32 | R149: 95.24 | S149: 414 | T149: 1.57 | U149: 85.65 | V149: 246 | W149: 1.31 | X149: 125.69 | Y149: 181 | Z149: 1.24 | AA149: 115.48 | AB149: 268 | AC149: 1.65 | AD149: 129.06 | AE149: 179 | AF149: 1.36 | AG149: 115.66 | AH149: 107 | AI149: 1.73 | AJ149: 114.00 | AK149: 143 | AL149: 1.14 | AM149: 60.67 | AN149: 197 | AO149: 1.30 | AP149: 71.30
C150: 남 | D150: 1,199 | E150: 1.38 | G150: 102 | H150: 1.39 | J150: 44 | K150: 1.28 | M150: 88 | N150: 1.49 | P150: 100 | Q150: 1.30 | S150: 191 | T150: 1.46 | V150: 137 | W150: 1.39 | Y150: 97 | Z150: 1.29 | AB150: 151 | AC150: 1.82 | AE150: 96 | AF150: 1.35 | AH150: 57 | AI150: 1.69 | AK150: 54 | AL150: 0.92 | AN150: 82 | AO150: 1.11
C151: 여 | D151: 1,150 | E151: 1.37 | G151: 74 | H151: 1.12 | J151: 40 | K151: 1.29 | M151: 61 | N151: 1.08 | P151: 105 | Q151: 1.34 | S151: 223 | T151: 1.68 | V151: 109 | W151: 1.21 | Y151: 84 | Z151: 1.19 | AB151: 117 | AC151: 1.47 | AE151: 83 | AF151: 1.36 | AH151: 50 | AI151: 1.76 | AK151: 89 | AL151: 1.33 | AN151: 115 | AO151: 1.47
B152: 47세 | C152: 계 | D152: 2,453 | E152: 1.44 | F152: 100.74 | G152: 188 | H152: 1.34 | I152: 123.81 | J152: 89 | K152: 1.36 | L152: 106.98 | M152: 150 | N152: 1.30 | O152: 111.27 | P152: 225 | Q152: 1.45 | R152: 118.45 | S152: 451 | T152: 1.71 | U152: 78.97 | V152: 273 | W152: 1.45 | X152: 114.96 | Y152: 210 | Z152: 1.44 | AA152: 79.49 | AB152: 212 | AC152: 1.30 | AD152: 105.83 | AE152: 198 | AF152: 1.50 | AG152: 92.23 | AH152: 98 | AI152: 1.58 | AJ152: 157.89 | AK152: 140 | AL152: 1.11 | AM152: 94.44 | AN152: 219 | AO152: 1.44 | AP152: 100.92
C153: 남 | D153: 1,231 | E153: 1.42 | G153: 104 | H153: 1.42 | J153: 46 | K153: 1.34 | M153: 79 | N153: 1.34 | P153: 122 | Q153: 1.58 | S153: 199 | T153: 1.52 | V153: 146 | W153: 1.49 | Y153: 93 | Z153: 1.24 | AB153: 109 | AC153: 1.31 | AE153: 95 | AF153: 1.34 | AH153: 60 | AI153: 1.78 | AK153: 68 | AL153: 1.16 | AN153: 110 | AO153: 1.49
C154: 여 | D154: 1,222 | E154: 1.46 | G154: 84 | H154: 1.27 | J154: 43 | K154: 1.38 | M154: 71 | N154: 1.26 | P154: 103 | Q154: 1.32 | S154: 252 | T154: 1.89 | V154: 127 | W154: 1.41 | Y154: 117 | Z154: 1.66 | AB154: 103 | AC154: 1.30 | AE154: 103 | AF154: 1.68 | AH154: 38 | AI154: 1.34 | AK154: 72 | AL154: 1.08 | AN154: 109 | AO154: 1.40
B155: 48세 | C155: 계 | D155: 2,614 | E155: 1.53 | F155: 102.79 | G155: 179 | H155: 1.28 | I155: 113.10 | J155: 99 | K155: 1.51 | L155: 135.71 | M155: 168 | N155: 1.45 | O155: 115.38 | P155: 217 | Q155: 1.40 | R155: 93.75 | S155: 500 | T155: 1.90 | U155: 77.94 | V155: 302 | W155: 1.60 | X155: 105.44 | Y155: 228 | Z155: 1.57 | AA155: 113.08 | AB155: 236 | AC155: 1.45 | AD155: 120.56 | AE155: 204 | AF155: 1.55 | AG155: 145.78 | AH155: 88 | AI155: 1.42 | AJ155: 120.00 | AK155: 174 | AL155: 1.38 | AM155: 114.81 | AN155: 219 | AO155: 1.44 | AP155: 72.44
C156: 남 | D156: 1,325 | E156: 1.53 | G156: 95 | H156: 1.29 | J156: 57 | K156: 1.66 | M156: 90 | N156: 1.52 | P156: 105 | Q156: 1.36 | S156: 219 | T156: 1.68 | V156: 155 | W156: 1.58 | Y156: 121 | Z156: 1.61 | AB156: 129 | AC156: 1.55 | AE156: 121 | AF156: 1.71 | AH156: 48 | AI156: 1.43 | AK156: 93 | AL156: 1.58 | AN156: 92 | AO156: 1.24
C157: 여 | D157: 1,289 | E157: 1.54 | G157: 84 | H157: 1.27 | J157: 42 | K157: 1.35 | M157: 78 | N157: 1.38 | P157: 112 | Q157: 1.43 | S157: 281 | T157: 2.11 | V157: 147 | W157: 1.63 | Y157: 107 | Z157: 1.52 | AB157: 107 | AC157: 1.35 | AE157: 83 | AF157: 1.36 | AH157: 40 | AI157: 1.41 | AK157: 81 | AL157: 1.21 | AN157: 127 | AO157: 1.63
B158: 49세 | C158: 계 | D158: 3,050 | E158: 1.79 | F158: 101.99 | G158: 214 | H158: 1.53 | I158: 151.76 | J158: 105 | K158: 1.61 | L158: 144.19 | M158: 189 | N158: 1.64 | O158: 103.23 | P158: 304 | Q158: 1.96 | R158: 91.19 | S158: 549 | T158: 2.08 | U158: 82.39 | V158: 358 | W158: 1.90 | X158: 123.75 | Y158: 232 | Z158: 1.59 | AA158: 129.70 | AB158: 259 | AC158: 1.59 | AD158: 82.39 | AE158: 240 | AF158: 1.82 | AG158: 133.01 | AH158: 124 | AI158: 2.00 | AJ158: 129.63 | AK158: 203 | AL158: 1.62 | AM158: 100.99 | AN158: 273 | AO158: 1.79 | AP158: 62.50
C159: 남 | D159: 1,540 | E159: 1.77 | G159: 129 | H159: 1.76 | J159: 62 | K159: 1.81 | M159: 96 | N159: 1.62 | P159: 145 | Q159: 1.88 | S159: 248 | T159: 1.90 | V159: 198 | W159: 2.02 | Y159: 131 | Z159: 1.74 | AB159: 117 | AC159: 1.41 | AE159: 137 | AF159: 1.93 | AH159: 70 | AI159: 2.08 | AK159: 102 | AL159: 1.73 | AN159: 105 | AO159: 1.42
C160: 여 | D160: 1,510 | E160: 1.80 | G160: 85 | H160: 1.28 | J160: 43 | K160: 1.38 | M160: 93 | N160: 1.65 | P160: 159 | Q160: 2.03 | S160: 301 | T160: 2.26 | V160: 160 | W160: 1.77 | Y160: 101 | Z160: 1.44 | AB160: 142 | AC160: 1.79 | AE160: 103 | AF160: 1.68 | AH160: 54 | AI160: 1.91 | AK160: 101 | AL160: 1.51 | AN160: 168 | AO160: 2.15
B161: 50세 | C161: 계 | D161: 3,134 | E161: 1.83 | F161: 99.24 | G161: 222 | H161: 1.59 | I161: 155.17 | J161: 122 | K161: 1.87 | L161: 114.04 | M161: 191 | N161: 1.65 | O161: 105.38 | P161: 325 | Q161: 2.09 | R161: 90.06 | S161: 583 | T161: 2.21 | U161: 78.83 | V161: 338 | W161: 1.79 | X161: 120.92 | Y161: 242 | Z161: 1.66 | AA161: 100.00 | AB161: 280 | AC161: 1.72 | AD161: 95.80 | AE161: 252 | AF161: 1.91 | AG161: 123.01 | AH161: 116 | AI161: 1.87 | AJ161: 146.81 | AK161: 196 | AL161: 1.56 | AM161: 76.58 | AN161: 267 | AO161: 1.76 | AP161: 76.82
C162: 남 | D162: 1,561 | E162: 1.80 | G162: 135 | H162: 1.84 | J162: 65 | K162: 1.89 | M162: 98 | N162: 1.66 | P162: 154 | Q162: 2.00 | S162: 257 | T162: 1.97 | V162: 185 | W162: 1.88 | Y162: 121 | Z162: 1.61 | AB162: 137 | AC162: 1.65 | AE162: 139 | AF162: 1.96 | AH162: 69 | AI162: 2.05 | AK162: 85 | AL162: 1.45 | AN162: 116 | AO162: 1.57
C163: 여 | D163: 1,573 | E163: 1.87 | G163: 87 | H163: 1.31 | J163: 57 | K163: 1.83 | M163: 93 | N163: 1.65 | P163: 171 | Q163: 2.19 | S163: 326 | T163: 2.45 | V163: 153 | W163: 1.70 | Y163: 121 | Z163: 1.72 | AB163: 143 | AC163: 1.80 | AE163: 113 | AF163: 1.85 | AH163: 47 | AI163: 1.66 | AK163: 111 | AL163: 1.66 | AN163: 151 | AO163: 1.93
B164: 51세 | C164: 계 | D164: 3,089 | E164: 1.81 | F164: 100.58 | G164: 215 | H164: 1.54 | I164: 136.26 | J164: 134 | K164: 2.05 | L164: 157.69 | M164: 215 | N164: 1.86 | O164: 117.17 | P164: 287 | Q164: 1.85 | R164: 100.70 | S164: 612 | T164: 2.32 | U164: 81.07 | V164: 349 | W164: 1.85 | X164: 112.80 | Y164: 215 | Z164: 1.48 | AA164: 123.96 | AB164: 243 | AC164: 1.49 | AD164: 74.82 | AE164: 244 | AF164: 1.85 | AG164: 154.17 | AH164: 112 | AI164: 1.81 | AJ164: 124.00 | AK164: 179 | AL164: 1.42 | AM164: 72.12 | AN164: 284 | AO164: 1.87 | AP164: 69.05
C165: 남 | D165: 1,549 | E165: 1.78 | G165: 124 | H165: 1.69 | J165: 82 | K165: 2.39 | M165: 116 | N165: 1.96 | P165: 144 | Q165: 1.87 | S165: 274 | T165: 2.10 | V165: 185 | W165: 1.88 | Y165: 119 | Z165: 1.58 | AB165: 104 | AC165: 1.25 | AE165: 148 | AF165: 2.09 | AH165: 62 | AI165: 1.84 | AK165: 75 | AL165: 1.28 | AN165: 116 | AO165: 1.57
C166: 여 | D166: 1,540 | E166: 1.83 | G166: 91 | H166: 1.37 | J166: 52 | K166: 1.67 | M166: 99 | N166: 1.75 | P166: 143 | Q166: 1.83 | S166: 338 | T166: 2.54 | V166: 164 | W166: 1.82 | Y166: 96 | Z166: 1.36 | AB166: 139 | AC166: 1.75 | AE166: 96 | AF166: 1.57 | AH166: 50 | AI166: 1.76 | AK166: 104 | AL166: 1.56 | AN166: 168 | AO166: 2.15
B167: 52세 | C167: 계 | D167: 3,514 | E167: 2.06 | F167: 100.57 | G167: 234 | H167: 1.67 | I167: 127.18 | J167: 127 | K167: 1.94 | L167: 111.67 | M167: 215 | N167: 1.86 | O167: 106.73 | P167: 346 | Q167: 2.23 | R167: 93.30 | S167: 657 | T167: 2.49 | U167: 82.50 | V167: 407 | W167: 2.16 | X167: 123.63 | Y167: 292 | Z167: 2.01 | AA167: 100.00 | AB167: 276 | AC167: 1.70 | AD167: 102.94 | AE167: 254 | AF167: 1.92 | AG167: 151.49 | AH167: 137 | AI167: 2.21 | AJ167: 95.71 | AK167: 251 | AL167: 2.00 | AM167: 65.13 | AN167: 318 | AO167: 2.09 | AP167: 100.00
C168: 남 | D168: 1,762 | E168: 2.03 | G168: 131 | H168: 1.78 | J168: 67 | K168: 1.95 | M168: 111 | N168: 1.88 | P168: 167 | Q168: 2.16 | S168: 297 | T168: 2.27 | V168: 225 | W168: 2.29 | Y168: 146 | Z168: 1.94 | AB168: 140 | AC168: 1.69 | AE168: 153 | AF168: 2.16 | AH168: 67 | AI168: 1.99 | AK168: 99 | AL168: 1.68 | AN168: 159 | AO168: 2.15
C169: 여 | D169: 1,752 | E169: 2.09 | G169: 103 | H169: 1.55 | J169: 60 | K169: 1.93 | M169: 104 | N169: 1.84 | P169: 179 | Q169: 2.29 | S169: 360 | T169: 2.71 | V169: 182 | W169: 2.02 | Y169: 146 | Z169: 2.08 | AB169: 136 | AC169: 1.71 | AE169: 101 | AF169: 1.65 | AH169: 70 | AI169: 2.47 | AK169: 152 | AL169: 2.27 | AN169: 159 | AO169: 2.04
B170: 53세 | C170: 계 | D170: 3,421 | E170: 2.00 | F170: 105.96 | G170: 244 | H170: 1.74 | I170: 159.57 | J170: 135 | K170: 2.06 | L170: 125.00 | M170: 211 | N170: 1.83 | O170: 124.47 | P170: 342 | Q170: 2.20 | R170: 108.54 | S170: 652 | T170: 2.47 | U170: 110.32 | V170: 345 | W170: 1.83 | X170: 105.36 | Y170: 276 | Z170: 1.90 | AA170: 107.52 | AB170: 267 | AC170: 1.64 | AD170: 92.09 | AE170: 273 | AF170: 2.07 | AG170: 92.25 | AH170: 128 | AI170: 2.06 | AJ170: 116.95 | AK170: 256 | AL170: 2.04 | AM170: 72.97 | AN170: 292 | AO170: 1.92 | AP170: 94.67
C171: 남 | D171: 1,760 | E171: 2.03 | G171: 150 | H171: 2.04 | J171: 75 | K171: 2.18 | M171: 117 | N171: 1.98 | P171: 178 | Q171: 2.31 | S171: 342 | T171: 2.62 | V171: 177 | W171: 1.80 | Y171: 143 | Z171: 1.90 | AB171: 128 | AC171: 1.54 | AE171: 131 | AF171: 1.85 | AH171: 69 | AI171: 2.05 | AK171: 108 | AL171: 1.84 | AN171: 142 | AO171: 1.92
C172: 여 | D172: 1,661 | E172: 1.98 | G172: 94 | H172: 1.42 | J172: 60 | K172: 1.93 | M172: 94 | N172: 1.67 | P172: 164 | Q172: 2.10 | S172: 310 | T172: 2.33 | V172: 168 | W172: 1.86 | Y172: 133 | Z172: 1.89 | AB172: 139 | AC172: 1.75 | AE172: 142 | AF172: 2.32 | AH172: 59 | AI172: 2.08 | AK172: 148 | AL172: 2.21 | AN172: 150 | AO172: 1.92
B173: 54세 | C173: 계 | D173: 3,775 | E173: 2.21 | F173: 103.28 | G173: 292 | H173: 2.09 | I173: 149.57 | J173: 136 | K173: 2.08 | L173: 119.35 | M173: 266 | N173: 2.30 | O173: 111.11 | P173: 355 | Q173: 2.29 | R173: 97.22 | S173: 639 | T173: 2.42 | U173: 89.05 | V173: 432 | W173: 2.29 | X173: 109.71 | Y173: 327 | Z173: 2.25 | AA173: 100.61 | AB173: 290 | AC173: 1.78 | AD173: 108.63 | AE173: 301 | AF173: 2.28 | AG173: 115.00 | AH173: 117 | AI173: 1.89 | AJ173: 154.35 | AK173: 261 | AL173: 2.08 | AM173: 65.19 | AN173: 359 | AO173: 2.36 | AP173: 97.25
C174: 남 | D174: 1,918 | E174: 2.21 | G174: 175 | H174: 2.38 | J174: 74 | K174: 2.15 | M174: 140 | N174: 2.37 | P174: 175 | Q174: 2.27 | S174: 301 | T174: 2.31 | V174: 226 | W174: 2.30 | Y174: 164 | Z174: 2.18 | AB174: 151 | AC174: 1.82 | AE174: 161 | AF174: 2.27 | AH174: 71 | AI174: 2.11 | AK174: 103 | AL174: 1.75 | AN174: 177 | AO174: 2.39
C175: 여 | D175: 1,857 | E175: 2.21 | G175: 117 | H175: 1.76 | J175: 62 | K175: 2.00 | M175: 126 | N175: 2.23 | P175: 180 | Q175: 2.30 | S175: 338 | T175: 2.54 | V175: 206 | W175: 2.28 | Y175: 163 | Z175: 2.32 | AB175: 139 | AC175: 1.75 | AE175: 140 | AF175: 2.29 | AH175: 46 | AI175: 1.62 | AK175: 158 | AL175: 2.36 | AN175: 182 | AO175: 2.33
B176: 55세 | C176: 계 | D176: 3,517 | E176: 2.06 | F176: 101.66 | G176: 267 | H176: 1.91 | I176: 106.98 | J176: 129 | K176: 1.97 | L176: 115.00 | M176: 238 | N176: 2.06 | O176: 87.40 | P176: 324 | Q176: 2.09 | R176: 94.01 | S176: 610 | T176: 2.31 | U176: 107.48 | V176: 352 | W176: 1.87 | X176: 130.07 | Y176: 295 | Z176: 2.03 | AA176: 125.19 | AB176: 278 | AC176: 1.71 | AD176: 94.41 | AE176: 275 | AF176: 2.08 | AG176: 96.43 | AH176: 113 | AI176: 1.82 | AJ176: 105.45 | AK176: 290 | AL176: 2.31 | AM176: 82.39 | AN176: 346 | AO176: 2.27 | AP176: 86.02
C177: 남 | D177: 1,773 | E177: 2.04 | G177: 138 | H177: 1.88 | J177: 69 | K177: 2.01 | M177: 111 | N177: 1.88 | P177: 157 | Q177: 2.03 | S177: 316 | T177: 2.42 | V177: 199 | W177: 2.03 | Y177: 164 | Z177: 2.18 | AB177: 135 | AC177: 1.63 | AE177: 135 | AF177: 1.90 | AH177: 58 | AI177: 1.72 | AK177: 131 | AL177: 2.23 | AN177: 160 | AO177: 2.16
C178: 여 | D178: 1,744 | E178: 2.08 | G178: 129 | H178: 1.94 | J178: 60 | K178: 1.93 | M178: 127 | N178: 2.25 | P178: 167 | Q178: 2.14 | S178: 294 | T178: 2.21 | V178: 153 | W178: 1.70 | Y178: 131 | Z178: 1.86 | AB178: 143 | AC178: 1.80 | AE178: 140 | AF178: 2.29 | AH178: 55 | AI178: 1.94 | AK178: 159 | AL178: 2.38 | AN178: 186 | AO178: 2.38
B179: 56세 | C179: 계 | D179: 3,244 | E179: 1.90 | F179: 104.93 | G179: 243 | H179: 1.74 | I179: 127.10 | J179: 123 | K179: 1.88 | L179: 112.07 | M179: 195 | N179: 1.69 | O179: 119.10 | P179: 303 | Q179: 1.95 | R179: 99.34 | S179: 554 | T179: 2.10 | U179: 102.19 | V179: 365 | W179: 1.94 | X179: 107.39 | Y179: 294 | Z179: 2.02 | AA179: 88.46 | AB179: 262 | AC179: 1.61 | AD179: 96.99 | AE179: 244 | AF179: 1.85 | AG179: 144.00 | AH179: 110 | AI179: 1.77 | AJ179: 120.00 | AK179: 247 | AL179: 1.97 | AM179: 99.19 | AN179: 304 | AO179: 2.00 | AP179: 85.37
C180: 남 | D180: 1,661 | E180: 1.91 | G180: 136 | H180: 1.85 | J180: 65 | K180: 1.89 | M180: 106 | N180: 1.79 | P180: 151 | Q180: 1.96 | S180: 280 | T180: 2.14 | V180: 189 | W180: 1.92 | Y180: 138 | Z180: 1.83 | AB180: 129 | AC180: 1.55 | AE180: 144 | AF180: 2.03 | AH180: 60 | AI180: 1.78 | AK180: 123 | AL180: 2.09 | AN180: 140 | AO180: 1.89
C181: 여 | D181: 1,583 | E181: 1.89 | G181: 107 | H181: 1.61 | J181: 58 | K181: 1.87 | M181: 89 | N181: 1.58 | P181: 152 | Q181: 1.94 | S181: 274 | T181: 2.06 | V181: 176 | W181: 1.95 | Y181: 156 | Z181: 2.22 | AB181: 133 | AC181: 1.67 | AE181: 100 | AF181: 1.64 | AH181: 50 | AI181: 1.76 | AK181: 124 | AL181: 1.85 | AN181: 164 | AO181: 2.10
B182: 57세 | C182: 계 | D182: 3,071 | E182: 1.80 | F182: 107.08 | G182: 247 | H182: 1.77 | I182: 107.56 | J182: 97 | K182: 1.48 | L182: 130.95 | M182: 209 | N182: 1.81 | O182: 115.46 | P182: 291 | Q182: 1.87 | R182: 85.35 | S182: 509 | T182: 1.93 | U182: 117.52 | V182: 352 | W182: 1.87 | X182: 104.65 | Y182: 249 | Z182: 1.71 | AA182: 122.32 | AB182: 247 | AC182: 1.52 | AD182: 90.00 | AE182: 251 | AF182: 1.90 | AG182: 132.41 | AH182: 92 | AI182: 1.48 | AJ182: 187.50 | AK182: 243 | AL182: 1.93 | AM182: 80.00 | AN182: 284 | AO182: 1.87 | AP182: 95.86
C183: 남 | D183: 1,588 | E183: 1.83 | G183: 128 | H183: 1.74 | J183: 55 | K183: 1.60 | M183: 112 | N183: 1.90 | P183: 134 | Q183: 1.74 | S183: 275 | T183: 2.11 | V183: 180 | W183: 1.83 | Y183: 137 | Z183: 1.82 | AB183: 117 | AC183: 1.41 | AE183: 143 | AF183: 2.02 | AH183: 60 | AI183: 1.78 | AK183: 108 | AL183: 1.84 | AN183: 139 | AO183: 1.88
C184: 여 | D184: 1,483 | E184: 1.77 | G184: 119 | H184: 1.79 | J184: 42 | K184: 1.35 | M184: 97 | N184: 1.72 | P184: 157 | Q184: 2.01 | S184: 234 | T184: 1.76 | V184: 172 | W184: 1.91 | Y184: 112 | Z184: 1.59 | AB184: 130 | AC184: 1.63 | AE184: 108 | AF184: 1.77 | AH184: 32 | AI184: 1.13 | AK184: 135 | AL184: 2.02 | AN184: 145 | AO184: 1.86
B185: 58세 | C185: 계 | D185: 3,264 | E185: 1.91 | F185: 100.61 | G185: 293 | H185: 2.10 | I185: 96.64 | J185: 136 | K185: 2.08 | L185: 119.35 | M185: 230 | N185: 1.99 | O185: 105.36 | P185: 266 | Q185: 1.71 | R185: 91.37 | S185: 496 | T185: 1.88 | U185: 103.28 | V185: 374 | W185: 1.99 | X185: 100.00 | Y185: 288 | Z185: 1.98 | AA185: 98.62 | AB185: 255 | AC185: 1.57 | AD185: 114.29 | AE185: 254 | AF185: 1.92 | AG185: 109.92 | AH185: 106 | AI185: 1.71 | AJ185: 120.83 | AK185: 251 | AL185: 2.00 | AM185: 88.72 | AN185: 315 | AO185: 2.07 | AP185: 87.50
C186: 남 | D186: 1,637 | E186: 1.88 | G186: 144 | H186: 1.96 | J186: 74 | K186: 2.15 | M186: 118 | N186: 2.00 | P186: 127 | Q186: 1.65 | S186: 252 | T186: 1.93 | V186: 187 | W186: 1.90 | Y186: 143 | Z186: 1.90 | AB186: 136 | AC186: 1.64 | AE186: 133 | AF186: 1.88 | AH186: 58 | AI186: 1.72 | AK186: 118 | AL186: 2.01 | AN186: 147 | AO186: 1.99
C187: 여 | D187: 1,627 | E187: 1.94 | G187: 149 | H187: 2.25 | J187: 62 | K187: 2.00 | M187: 112 | N187: 1.98 | P187: 139 | Q187: 1.78 | S187: 244 | T187: 1.83 | V187: 187 | W187: 2.07 | Y187: 145 | Z187: 2.06 | AB187: 119 | AC187: 1.50 | AE187: 121 | AF187: 1.98 | AH187: 48 | AI187: 1.69 | AK187: 133 | AL187: 1.99 | AN187: 168 | AO187: 2.15
B188: 59세 | C188: 계 | D188: 2,760 | E188: 1.62 | F188: 101.46 | G188: 233 | H188: 1.67 | I188: 79.23 | J188: 100 | K188: 1.53 | L188: 122.22 | M188: 200 | N188: 1.73 | O188: 122.22 | P188: 252 | Q188: 1.62 | R188: 108.26 | S188: 411 | T188: 1.56 | U188: 104.48 | V188: 353 | W188: 1.87 | X188: 106.43 | Y188: 234 | Z188: 1.61 | AA188: 131.68 | AB188: 195 | AC188: 1.20 | AD188: 91.18 | AE188: 209 | AF188: 1.58 | AG188: 129.67 | AH188: 102 | AI188: 1.64 | AJ188: 104.00 | AK188: 187 | AL188: 1.49 | AM188: 96.84 | AN188: 284 | AO188: 1.87 | AP188: 64.16
C189: 남 | D189: 1,390 | E189: 1.60 | G189: 103 | H189: 1.40 | J189: 55 | K189: 1.60 | M189: 110 | N189: 1.86 | P189: 131 | Q189: 1.70 | S189: 210 | T189: 1.61 | V189: 182 | W189: 1.85 | Y189: 133 | Z189: 1.77 | AB189: 93 | AC189: 1.12 | AE189: 118 | AF189: 1.66 | AH189: 52 | AI189: 1.54 | AK189: 92 | AL189: 1.56 | AN189: 111 | AO189: 1.50
C190: 여 | D190: 1,370 | E190: 1.63 | G190: 130 | H190: 1.96 | J190: 45 | K190: 1.45 | M190: 90 | N190: 1.59 | P190: 121 | Q190: 1.55 | S190: 201 | T190: 1.51 | V190: 171 | W190: 1.90 | Y190: 101 | Z190: 1.44 | AB190: 102 | AC190: 1.28 | AE190: 91 | AF190: 1.49 | AH190: 50 | AI190: 1.76 | AK190: 95 | AL190: 1.42 | AN190: 173 | AO190: 2.22
B191: 60세 | C191: 계 | D191: 3,183 | E191: 1.86 | F191: 101.46 | G191: 269 | H191: 1.92 | I191: 96.35 | J191: 124 | K191: 1.90 | L191: 87.88 | M191: 240 | N191: 2.08 | O191: 126.42 | P191: 313 | Q191: 2.02 | R191: 83.04 | S191: 464 | T191: 1.76 | U191: 93.33 | V191: 374 | W191: 1.99 | X191: 88.89 | Y191: 247 | Z191: 1.70 | AA191: 112.93 | AB191: 225 | AC191: 1.38 | AD191: 116.35 | AE191: 239 | AF191: 1.81 | AG191: 143.88 | AH191: 100 | AI191: 1.61 | AJ191: 92.31 | AK191: 254 | AL191: 2.02 | AM191: 101.59 | AN191: 334 | AO191: 2.20 | AP191: 101.20
C192: 남 | D192: 1,603 | E192: 1.85 | G192: 132 | H192: 1.80 | J192: 58 | K192: 1.69 | M192: 134 | N192: 2.27 | P192: 142 | Q192: 1.84 | S192: 224 | T192: 1.72 | V192: 176 | W192: 1.79 | Y192: 131 | Z192: 1.74 | AB192: 121 | AC192: 1.46 | AE192: 141 | AF192: 1.99 | AH192: 48 | AI192: 1.43 | AK192: 128 | AL192: 2.18 | AN192: 168 | AO192: 2.27
C193: 여 | D193: 1,580 | E193: 1.88 | G193: 137 | H193: 2.07 | J193: 66 | K193: 2.12 | M193: 106 | N193: 1.88 | P193: 171 | Q193: 2.19 | S193: 240 | T193: 1.80 | V193: 198 | W193: 2.20 | Y193: 116 | Z193: 1.65 | AB193: 104 | AC193: 1.31 | AE193: 98 | AF193: 1.60 | AH193: 52 | AI193: 1.83 | AK193: 126 | AL193: 1.88 | AN193: 166 | AO193: 2.13
B194: 61세 | C194: 계 | D194: 3,091 | E194: 1.81 | F194: 98.40 | G194: 278 | H194: 1.99 | I194: 97.16 | J194: 130 | K194: 1.99 | L194: 109.68 | M194: 245 | N194: 2.12 | O194: 100.82 | P194: 302 | Q194: 1.94 | R194: 98.68 | S194: 409 | T194: 1.55 | U194: 105.53 | V194: 310 | W194: 1.65 | X194: 93.75 | Y194: 257 | Z194: 1.77 | AA194: 91.79 | AB194: 243 | AC194: 1.49 | AD194: 94.40 | AE194: 237 | AF194: 1.80 | AG194: 109.73 | AH194: 104 | AI194: 1.68 | AJ194: 92.59 | AK194: 255 | AL194: 2.03 | AM194: 102.38 | AN194: 321 | AO194: 2.11 | AP194: 88.82
C195: 남 | D195: 1,533 | E195: 1.76 | G195: 137 | H195: 1.86 | J195: 68 | K195: 1.98 | M195: 123 | N195: 2.08 | P195: 150 | Q195: 1.94 | S195: 210 | T195: 1.61 | V195: 150 | W195: 1.53 | Y195: 123 | Z195: 1.64 | AB195: 118 | AC195: 1.42 | AE195: 124 | AF195: 1.75 | AH195: 50 | AI195: 1.48 | AK195: 129 | AL195: 2.19 | AN195: 151 | AO195: 2.04
C196: 여 | D196: 1,558 | E196: 1.86 | G196: 141 | H196: 2.13 | J196: 62 | K196: 2.00 | M196: 122 | N196: 2.16 | P196: 152 | Q196: 1.94 | S196: 199 | T196: 1.50 | V196: 160 | W196: 1.77 | Y196: 134 | Z196: 1.90 | AB196: 125 | AC196: 1.57 | AE196: 113 | AF196: 1.85 | AH196: 54 | AI196: 1.91 | AK196: 126 | AL196: 1.88 | AN196: 170 | AO196: 2.18
B197: 62세 | C197: 계 | D197: 3,794 | E197: 2.22 | F197: 99.16 | G197: 365 | H197: 2.61 | I197: 102.78 | J197: 170 | K197: 2.60 | L197: 112.50 | M197: 309 | N197: 2.67 | O197: 69.78 | P197: 355 | Q197: 2.29 | R197: 88.83 | S197: 511 | T197: 1.94 | U197: 120.26 | V197: 434 | W197: 2.30 | X197: 103.76 | Y197: 335 | Z197: 2.30 | AA197: 103.03 | AB197: 292 | AC197: 1.80 | AD197: 102.78 | AE197: 253 | AF197: 1.92 | AG197: 97.66 | AH197: 127 | AI197: 2.05 | AJ197: 86.76 | AK197: 260 | AL197: 2.07 | AM197: 101.55 | AN197: 383 | AO197: 2.52 | AP197: 95.41
C198: 남 | D198: 1,889 | E198: 2.17 | G198: 185 | H198: 2.52 | J198: 90 | K198: 2.62 | M198: 127 | N198: 2.15 | P198: 167 | Q198: 2.16 | S198: 279 | T198: 2.14 | V198: 221 | W198: 2.25 | Y198: 170 | Z198: 2.26 | AB198: 148 | AC198: 1.78 | AE198: 125 | AF198: 1.76 | AH198: 59 | AI198: 1.75 | AK198: 131 | AL198: 2.23 | AN198: 187 | AO198: 2.53
C199: 여 | D199: 1,905 | E199: 2.27 | G199: 180 | H199: 2.71 | J199: 80 | K199: 2.57 | M199: 182 | N199: 3.23 | P199: 188 | Q199: 2.41 | S199: 232 | T199: 1.74 | V199: 213 | W199: 2.36 | Y199: 165 | Z199: 2.35 | AB199: 144 | AC199: 1.81 | AE199: 128 | AF199: 2.09 | AH199: 68 | AI199: 2.40 | AK199: 129 | AL199: 1.93 | AN199: 196 | AO199: 2.51
B200: 63세 | C200: 계 | D200: 3,321 | E200: 1.94 | F200: 96.16 | G200: 316 | H200: 2.26 | I200: 120.98 | J200: 159 | K200: 2.43 | L200: 96.30 | M200: 285 | N200: 2.47 | O200: 85.06 | P200: 306 | Q200: 1.97 | R200: 73.86 | S200: 387 | T200: 1.47 | U200: 104.76 | V200: 388 | W200: 2.06 | X200: 115.56 | Y200: 250 | Z200: 1.72 | AA200: 95.31 | AB200: 268 | AC200: 1.65 | AD200: 98.52 | AE200: 218 | AF200: 1.65 | AG200: 98.18 | AH200: 101 | AI200: 1.63 | AJ200: 134.88 | AK200: 256 | AL200: 2.04 | AM200: 70.67 | AN200: 387 | AO200: 2.54 | AP200: 89.71
C201: 남 | D201: 1,628 | E201: 1.87 | G201: 173 | H201: 2.35 | J201: 78 | K201: 2.27 | M201: 131 | N201: 2.22 | P201: 130 | Q201: 1.69 | S201: 198 | T201: 1.52 | V201: 208 | W201: 2.12 | Y201: 122 | Z201: 1.62 | AB201: 133 | AC201: 1.60 | AE201: 108 | AF201: 1.52 | AH201: 58 | AI201: 1.72 | AK201: 106 | AL201: 1.80 | AN201: 183 | AO201: 2.47
C202: 여 | D202: 1,693 | E202: 2.02 | G202: 143 | H202: 2.16 | J202: 81 | K202: 2.61 | M202: 154 | N202: 2.73 | P202: 176 | Q202: 2.25 | S202: 189 | T202: 1.42 | V202: 180 | W202: 2.00 | Y202: 128 | Z202: 1.82 | AB202: 135 | AC202: 1.70 | AE202: 110 | AF202: 1.80 | AH202: 43 | AI202: 1.52 | AK202: 150 | AL202: 2.24 | AN202: 204 | AO202: 2.61
... 141 more rows

Sheet 인구 및 세대현황(대전광역시)
B2: 인구 및 세대현황
B3: 행정기관: | C3: 대전광역시
B4: 작성기준: | C4: 2023.07 현재 | H4: 출력일자 : 2023.08.01 | L4: (단위 : 명)
B5: 행정기관 | D5: 인 구 수 | G5: 구 성 비 | J5: 성비 | K5: 세대수 | L5: 세대당인구
D6: 계 | E6: 남 | F6: 여 | G6: 계 | H6: 남 | I6: 여
B7: 대전광역시 | D7: 1,444,898 | E7: 720,637 | F7: 724,261 | G7: 100.00 | H7: 49.87 | I7: 50.13 | J7: 99.50 | K7: 679,611 | L7: 2.13
B8: 대덕구 | D8: 170,803 | E8: 86,858 | F8: 83,945 | G8: 11.82 | H8: 6.01 | I8: 5.81 | J8: 103.47 | K8: 80,356 | L8: 2.13
B9: 동구 | D9: 218,701 | E9: 110,095 | F9: 108,606 | G9: 15.14 | H9: 7.62 | I9: 7.52 | J9: 101.37 | K9: 109,186 | L9: 2.00
B10: 중구 | D10: 224,684 | E10: 110,392 | F10: 114,292 | G10: 15.55 | H10: 7.64 | I10: 7.91 | J10: 96.59 | K10: 107,337 | L10: 2.09
B11: 서구 | D11: 467,653 | E11: 229,511 | F11: 238,142 | G11: 32.37 | H11: 15.88 | I11: 16.48 | J11: 96.38 | K11: 217,881 | L11: 2.15
B12: 유성구 | D12: 363,057 | E12: 183,781 | F12: 179,276 | G12: 25.13 | H12: 12.72 | I12: 12.41 | J12: 102.51 | K12: 164,851 | L12: 2.20
